Publisher Label,Publisher URI,"Supplier ID","Supplier","Invoice No.","Amount (£)","Purpose","Transaction Number","Payment Date","Organisational Unit","Cost Centre(T)","Internal Category Number"
"Wolverhampton City Council","http://opendatacommunities.org/id/metropolitan-district-council/wolverhampton","703074","Dennis Eagle Limited","307414","152.64","Services - Professional Fees","190363756","09/08/2017","Fleet Services","Fleet Management","R4400"
"Wolverhampton City Council","http://opendatacommunities.org/id/metropolitan-district-council/wolverhampton","703074","Dennis Eagle Limited","307905","114.48","Services - Professional Fees","190368303","30/08/2017","Fleet Services","Fleet Management","R4400"
"Wolverhampton City Council","http://opendatacommunities.org/id/metropolitan-district-council/wolverhampton","703074","Dennis Eagle Limited","DE11055539","1,526.46","Equipment - Purchase","190363022","04/08/2017","Fleet Services","Fleet Management","R4000"
"Wolverhampton City Council","http://opendatacommunities.org/id/metropolitan-district-council/wolverhampton","703074","Dennis Eagle Limited","DE11053060","155.01","Equipment - Purchase","190363021","04/08/2017","Fleet Services","Fleet Management","R4000"
"Wolverhampton City Council","http://opendatacommunities.org/id/metropolitan-district-council/wolverhampton","703074","Dennis Eagle Limited","DE11053060","117.27","Equipment - Purchase","190363021","04/08/2017","Fleet Services","Fleet Management","R4000"
"Wolverhampton City Council","http://opendatacommunities.org/id/metropolitan-district-council/wolverhampton","703074","Dennis Eagle Limited","DE11056611","3.81","Equipment - Purchase","190364638","16/08/2017","Fleet Services","Fleet Management","R4000"
"Wolverhampton City Council","http://opendatacommunities.org/id/metropolitan-district-council/wolverhampton","703074","Dennis Eagle Limited","DE11056611","7.21","Equipment - Purchase","190364638","16/08/2017","Fleet Services","Fleet Management","R4000"
"Wolverhampton City Council","http://opendatacommunities.org/id/metropolitan-district-council/wolverhampton","703074","Dennis Eagle Limited","DE11056611","61.92","Equipment - Purchase","190364638","16/08/2017","Fleet Services","Fleet Management","R4000"
"Wolverhampton City Council","http://opendatacommunities.org/id/metropolitan-district-council/wolverhampton","703074","Dennis Eagle Limited","DE11058029","86.85","Protective Clothing","190364641","16/08/2017","Fleet Services","Fleet Management","R4200"
"Wolverhampton City Council","http://opendatacommunities.org/id/metropolitan-district-council/wolverhampton","703074","Dennis Eagle Limited","DE11056611","535.70","Equipment - Purchase","190364638","16/08/2017","Fleet Services","Fleet Management","R4000"
"Wolverhampton City Council","http://opendatacommunities.org/id/metropolitan-district-council/wolverhampton","703074","Dennis Eagle Limited","DE11058027","153.18","Equipment - Purchase","190364640","16/08/2017","Fleet Services","Fleet Management","R4000"
"Wolverhampton City Council","http://opendatacommunities.org/id/metropolitan-district-council/wolverhampton","703074","Dennis Eagle Limited","DE11058027","2.77","Equipment - Purchase","190364640","16/08/2017","Fleet Services","Fleet Management","R4000"
"Wolverhampton City Council","http://opendatacommunities.org/id/metropolitan-district-council/wolverhampton","703074","Dennis Eagle Limited","DE11061886","275.60","Equipment - Purchase","190367165","23/08/2017","Fleet Services","Fleet Management","R4000"
"Wolverhampton City Council","http://opendatacommunities.org/id/metropolitan-district-council/wolverhampton","703074","Dennis Eagle Limited","DE11060936","5.70","Equipment - Purchase","190365891","18/08/2017","Fleet Services","Fleet Management","R4000"
"Wolverhampton City Council","http://opendatacommunities.org/id/metropolitan-district-council/wolverhampton","703074","Dennis Eagle Limited","DE11060937","275.60","Equipment - Purchase","190365892","18/08/2017","Fleet Services","Fleet Management","R4000"
"Wolverhampton City Council","http://opendatacommunities.org/id/metropolitan-district-council/wolverhampton","703074","Dennis Eagle Limited","DE11055121","145.29","Equipment - Purchase","190368331","30/08/2017","Fleet Services","Fleet Management","R4000"
"Wolverhampton City Council","http://opendatacommunities.org/id/metropolitan-district-council/wolverhampton","703074","Dennis Eagle Limited","307871","76.32","Services - Professional Fees","190368302","30/08/2017","Fleet Services","Fleet Management","R4400"
"Wolverhampton City Council","http://opendatacommunities.org/id/metropolitan-district-council/wolverhampton","703074","Dennis Eagle Limited","DE11056610","118.54","Equipment - Purchase","190363023","04/08/2017","Fleet Services","Fleet Management","R4000"
"Wolverhampton City Council","http://opendatacommunities.org/id/metropolitan-district-council/wolverhampton","703074","Dennis Eagle Limited","DE11056610","32.40","Equipment - Purchase","190363023","04/08/2017","Fleet Services","Fleet Management","R4000"
"Wolverhampton City Council","http://opendatacommunities.org/id/metropolitan-district-council/wolverhampton","703074","Dennis Eagle Limited","DE11058807","51.58","Equipment - Purchase","190364642","16/08/2017","Fleet Services","Fleet Management","R4000"
"Wolverhampton City Council","http://opendatacommunities.org/id/metropolitan-district-council/wolverhampton","703074","Dennis Eagle Limited","306912","645.83","Services - Professional Fees","190365101","16/08/2017","Fleet Services","Fleet Management","R4400"
"Wolverhampton City Council","http://opendatacommunities.org/id/metropolitan-district-council/wolverhampton","703074","Dennis Eagle Limited","DE11061231","19.83","Equipment - Purchase","190365112","16/08/2017","Fleet Services","Fleet Management","R4000"
"Wolverhampton City Council","http://opendatacommunities.org/id/metropolitan-district-council/wolverhampton","703074","Dennis Eagle Limited","DE11060558","70.26","Equipment - Purchase","190365890","18/08/2017","Fleet Services","Fleet Management","R4000"
"Wolverhampton City Council","http://opendatacommunities.org/id/metropolitan-district-council/wolverhampton","703074","Dennis Eagle Limited","DE11060558","175.90","Equipment - Purchase","190365890","18/08/2017","Fleet Services","Fleet Management","R4000"
"Wolverhampton City Council","http://opendatacommunities.org/id/metropolitan-district-council/wolverhampton","703074","Dennis Eagle Limited","DE11060558","310.02","Equipment - Purchase","190365890","18/08/2017","Fleet Services","Fleet Management","R4000"
"Wolverhampton City Council","http://opendatacommunities.org/id/metropolitan-district-council/wolverhampton","703074","Dennis Eagle Limited","DE11057678","12.45","Equipment - Purchase","190365888","18/08/2017","Fleet Services","Fleet Management","R4000"
"Wolverhampton City Council","http://opendatacommunities.org/id/metropolitan-district-council/wolverhampton","703074","Dennis Eagle Limited","DE11057678","16.62","Equipment - Purchase","190365888","18/08/2017","Fleet Services","Fleet Management","R4000"
"Wolverhampton City Council","http://opendatacommunities.org/id/metropolitan-district-council/wolverhampton","703074","Dennis Eagle Limited","DE11057678","218.91","Equipment - Purchase","190365888","18/08/2017","Fleet Services","Fleet Management","R4000"
"Wolverhampton City Council","http://opendatacommunities.org/id/metropolitan-district-council/wolverhampton","703074","Dennis Eagle Limited","DE11057678","16.62","Equipment - Purchase","190365888","18/08/2017","Fleet Services","Fleet Management","R4000"
"Wolverhampton City Council","http://opendatacommunities.org/id/metropolitan-district-council/wolverhampton","703074","Dennis Eagle Limited","DE11052670","51.74","Equipment - Purchase","190363019","04/08/2017","Fleet Services","Fleet Management","R4000"
"Wolverhampton City Council","http://opendatacommunities.org/id/metropolitan-district-council/wolverhampton","703074","Dennis Eagle Limited","DE11052670","3.81","Equipment - Purchase","190363019","04/08/2017","Fleet Services","Fleet Management","R4000"
"Wolverhampton City Council","http://opendatacommunities.org/id/metropolitan-district-council/wolverhampton","703074","Dennis Eagle Limited","DE11052670","7.21","Equipment - Purchase","190363019","04/08/2017","Fleet Services","Fleet Management","R4000"
"Wolverhampton City Council","http://opendatacommunities.org/id/metropolitan-district-council/wolverhampton","703074","Dennis Eagle Limited","DE11052670","61.92","Equipment - Purchase","190363019","04/08/2017","Fleet Services","Fleet Management","R4000"
"Wolverhampton City Council","http://opendatacommunities.org/id/metropolitan-district-council/wolverhampton","703074","Dennis Eagle Limited","DE11052670","535.70","Equipment - Purchase","190363019","04/08/2017","Fleet Services","Fleet Management","R4000"
"Wolverhampton City Council","http://opendatacommunities.org/id/metropolitan-district-council/wolverhampton","703074","Dennis Eagle Limited","308148","76.32","Services - Professional Fees","190368304","30/08/2017","Fleet Services","Fleet Management","R4400"
"Wolverhampton City Council","http://opendatacommunities.org/id/metropolitan-district-council/wolverhampton","703074","Dennis Eagle Limited","308148","114.48","Services - Professional Fees","190368304","30/08/2017","Fleet Services","Fleet Management","R4400"
"Wolverhampton City Council","http://opendatacommunities.org/id/metropolitan-district-council/wolverhampton","703080","Derwen College","4970","10,092.83","TPP - Alternative Provision of Education","130183228","09/08/2017","Standards and Vulnerable Pupils","Post 16 SEN Provision","R5037"
"Wolverhampton City Council","http://opendatacommunities.org/id/metropolitan-district-council/wolverhampton","703080","Derwen College","5574","10,092.84","TPP - Alternative Provision of Education","130183229","09/08/2017","Standards and Vulnerable Pupils","Post 16 SEN Provision","R5037"
"Wolverhampton City Council","http://opendatacommunities.org/id/metropolitan-district-council/wolverhampton","703080","Derwen College","4367","10,060.34","TPP - Alternative Provision of Education","130183227","09/08/2017","Standards and Vulnerable Pupils","Post 16 SEN Provision","R5037"
"Wolverhampton City Council","http://opendatacommunities.org/id/metropolitan-district-council/wolverhampton","703093","DFE UK Limited","40699","897.00","Furniture","130184998","18/08/2017","Headstart","Headstart Phase 3","R4004"
"Wolverhampton City Council","http://opendatacommunities.org/id/metropolitan-district-council/wolverhampton","703093","DFE UK Limited","40699","700.00","Furniture","130184998","18/08/2017","Headstart","Headstart Phase 3","R4004"
"Wolverhampton City Council","http://opendatacommunities.org/id/metropolitan-district-council/wolverhampton","703093","DFE UK Limited","40699","435.00","Furniture","130184998","18/08/2017","Headstart","Headstart Phase 3","R4004"
"Wolverhampton City Council","http://opendatacommunities.org/id/metropolitan-district-council/wolverhampton","703126","Direct Healthcare Services Limited","0000035738","9,004.48","Equipment - Purchase","130182939","25/08/2017","Independent Living Service","Independent Living Service","R4000"
"Wolverhampton City Council","http://opendatacommunities.org/id/metropolitan-district-council/wolverhampton","703126","Direct Healthcare Services Limited","0000035743","787.50","Equipment - Purchase","130182940","25/08/2017","Independent Living Service","Independent Living Service","R4000"
"Wolverhampton City Council","http://opendatacommunities.org/id/metropolitan-district-council/wolverhampton","703126","Direct Healthcare Services Limited","0000035743","782.25","Equipment - Purchase","130182940","25/08/2017","Independent Living Service","Independent Living Service","R4000"
"Wolverhampton City Council","http://opendatacommunities.org/id/metropolitan-district-council/wolverhampton","703126","Direct Healthcare Services Limited","0000035467","3,496.50","Equipment - Purchase","130181358","16/08/2017","Independent Living Service","Independent Living Service","R4000"
"Wolverhampton City Council","http://opendatacommunities.org/id/metropolitan-district-council/wolverhampton","703126","Direct Healthcare Services Limited","0000035467","1,049.60","Equipment - Purchase","130181358","16/08/2017","Independent Living Service","Independent Living Service","R4000"
"Wolverhampton City Council","http://opendatacommunities.org/id/metropolitan-district-council/wolverhampton","703126","Direct Healthcare Services Limited","0000035744","231.00","Equipment - Purchase","130182941","25/08/2017","Independent Living Service","Independent Living Service","R4000"
"Wolverhampton City Council","http://opendatacommunities.org/id/metropolitan-district-council/wolverhampton","703126","Direct Healthcare Services Limited","0000035744","1,048.95","Equipment - Purchase","130182941","25/08/2017","Independent Living Service","Independent Living Service","R4000"
"Wolverhampton City Council","http://opendatacommunities.org/id/metropolitan-district-council/wolverhampton","703126","Direct Healthcare Services Limited","0000035739","2,099.20","Equipment - Purchase","130182686","25/08/2017","Independent Living Service","Independent Living Service","R4000"
"Wolverhampton City Council","http://opendatacommunities.org/id/metropolitan-district-council/wolverhampton","703126","Direct Healthcare Services Limited","0000035739","787.50","Equipment - Purchase","130182686","25/08/2017","Independent Living Service","Independent Living Service","R4000"
"Wolverhampton City Council","http://opendatacommunities.org/id/metropolitan-district-council/wolverhampton","703126","Direct Healthcare Services Limited","0000035739","346.50","Equipment - Purchase","130182686","25/08/2017","Independent Living Service","Independent Living Service","R4000"
"Wolverhampton City Council","http://opendatacommunities.org/id/metropolitan-district-council/wolverhampton","703126","Direct Healthcare Services Limited","0000035739","3,129.00","Equipment - Purchase","130182686","25/08/2017","Independent Living Service","Independent Living Service","R4000"
"Wolverhampton City Council","http://opendatacommunities.org/id/metropolitan-district-council/wolverhampton","703126","Direct Healthcare Services Limited","0000035746","4,502.24","Equipment - Purchase","130182943","25/08/2017","Independent Living Service","Independent Living Service","R4000"
"Wolverhampton City Council","http://opendatacommunities.org/id/metropolitan-district-council/wolverhampton","703126","Direct Healthcare Services Limited","0000035745","1,574.40","Equipment - Purchase","130182942","25/08/2017","Independent Living Service","Independent Living Service","R4000"
"Wolverhampton City Council","http://opendatacommunities.org/id/metropolitan-district-council/wolverhampton","703126","Direct Healthcare Services Limited","0000035277","834.75","Equipment - R & M","130179563","02/08/2017","Independent Living Service","Independent Living Service","R4003"
"Wolverhampton City Council","http://opendatacommunities.org/id/metropolitan-district-council/wolverhampton","703126","Direct Healthcare Services Limited","0000035277","522.40","Equipment - R & M","130179563","02/08/2017","Independent Living Service","Independent Living Service","R4003"
"Wolverhampton City Council","http://opendatacommunities.org/id/metropolitan-district-council/wolverhampton","703134","Disable Aids (Cannock) Limited","86716","89.00","Equipment - Purchase","130185382","30/08/2017","Independent Living Service","Independent Living Service","R4000"
"Wolverhampton City Council","http://opendatacommunities.org/id/metropolitan-district-council/wolverhampton","703134","Disable Aids (Cannock) Limited","86784","49.50","Equipment - Purchase","130185384","30/08/2017","Independent Living Service","Independent Living Service","R4000"
"Wolverhampton City Council","http://opendatacommunities.org/id/metropolitan-district-council/wolverhampton","703134","Disable Aids (Cannock) Limited","86464","49.50","Equipment - Purchase","130185380","23/08/2017","Independent Living Service","Independent Living Service","R4000"
"Wolverhampton City Council","http://opendatacommunities.org/id/metropolitan-district-council/wolverhampton","703134","Disable Aids (Cannock) Limited","86381","62.00","Equipment - Purchase","130181361","16/08/2017","Independent Living Service","Independent Living Service","R4000"
"Wolverhampton City Council","http://opendatacommunities.org/id/metropolitan-district-council/wolverhampton","703134","Disable Aids (Cannock) Limited","86173","748.50","Equipment - Purchase","130178483","16/08/2017","Independent Living Service","Independent Living Service","R4000"
"Wolverhampton City Council","http://opendatacommunities.org/id/metropolitan-district-council/wolverhampton","703134","Disable Aids (Cannock) Limited","86462","96.36","Equipment - Purchase","130185379","30/08/2017","Independent Living Service","Independent Living Service","R4000"
"Wolverhampton City Council","http://opendatacommunities.org/id/metropolitan-district-council/wolverhampton","703134","Disable Aids (Cannock) Limited","86717","49.50","Equipment - Purchase","130185383","30/08/2017","Independent Living Service","Independent Living Service","R4000"
"Wolverhampton City Council","http://opendatacommunities.org/id/metropolitan-district-council/wolverhampton","703134","Disable Aids (Cannock) Limited","86387","179.13","Equipment - Purchase","130181364","16/08/2017","Independent Living Service","Independent Living Service","R4000"
"Wolverhampton City Council","http://opendatacommunities.org/id/metropolitan-district-council/wolverhampton","703134","Disable Aids (Cannock) Limited","86384","95.00","Equipment - R & M","130183230","09/08/2017","Leisure Services","Bert Williams Leisure Centre","R4003"
"Wolverhampton City Council","http://opendatacommunities.org/id/metropolitan-district-council/wolverhampton","703134","Disable Aids (Cannock) Limited","86715","173.46","Equipment - Purchase","130185381","30/08/2017","Independent Living Service","Independent Living Service","R4000"
"Wolverhampton City Council","http://opendatacommunities.org/id/metropolitan-district-council/wolverhampton","703134","Disable Aids (Cannock) Limited","87055","84.00","Equipment - Purchase","130185387","30/08/2017","Independent Living Service","Independent Living Service","R4000"
"Wolverhampton City Council","http://opendatacommunities.org/id/metropolitan-district-council/wolverhampton","703134","Disable Aids (Cannock) Limited","86459","364.50","Equipment - Purchase","130181366","02/08/2017","Independent Living Service","Independent Living Service","R4000"
"Wolverhampton City Council","http://opendatacommunities.org/id/metropolitan-district-council/wolverhampton","703134","Disable Aids (Cannock) Limited","86356","-748.50","Equipment - Purchase","130184999","23/08/2017","Independent Living Service","Independent Living Service","R4000"
"Wolverhampton City Council","http://opendatacommunities.org/id/metropolitan-district-council/wolverhampton","703134","Disable Aids (Cannock) Limited","86876","97.13","Equipment - Purchase","130184134","16/08/2017","Learning Disability Provider","Ernest Bold Court","R4000"
"Wolverhampton City Council","http://opendatacommunities.org/id/metropolitan-district-council/wolverhampton","703134","Disable Aids (Cannock) Limited","86458","67.00","Equipment - Purchase","130181365","16/08/2017","Independent Living Service","Independent Living Service","R4000"
"Wolverhampton City Council","http://opendatacommunities.org/id/metropolitan-district-council/wolverhampton","703134","Disable Aids (Cannock) Limited","86785","62.00","Equipment - Purchase","130185385","30/08/2017","Independent Living Service","Independent Living Service","R4000"
"Wolverhampton City Council","http://opendatacommunities.org/id/metropolitan-district-council/wolverhampton","703134","Disable Aids (Cannock) Limited","87108","25.00","Equipment - Purchase","130185388","30/08/2017","Independent Living Service","Independent Living Service","R4000"
"Wolverhampton City Council","http://opendatacommunities.org/id/metropolitan-district-council/wolverhampton","703134","Disable Aids (Cannock) Limited","87002","1,287.00","Equipment - Purchase","130185386","23/08/2017","Independent Living Service","Independent Living Service","R4000"
"Wolverhampton City Council","http://opendatacommunities.org/id/metropolitan-district-council/wolverhampton","703134","Disable Aids (Cannock) Limited","87002","814.50","Equipment - Purchase","130185386","23/08/2017","Independent Living Service","Independent Living Service","R4000"
"Wolverhampton City Council","http://opendatacommunities.org/id/metropolitan-district-council/wolverhampton","703134","Disable Aids (Cannock) Limited","87002","150.00","Equipment - Purchase","130185386","23/08/2017","Independent Living Service","Independent Living Service","R4000"
"Wolverhampton City Council","http://opendatacommunities.org/id/metropolitan-district-council/wolverhampton","703134","Disable Aids (Cannock) Limited","86382","64.50","Equipment - Purchase","130181362","16/08/2017","Independent Living Service","Independent Living Service","R4000"
"Wolverhampton City Council","http://opendatacommunities.org/id/metropolitan-district-council/wolverhampton","703136","Disclosure & Barring Service (Dbs)","A62546","6,996.00","CRB Police Checks","130183828","25/08/2017","The Hub","Criminal Convictions Checking","R1601"
"Wolverhampton City Council","http://opendatacommunities.org/id/metropolitan-district-council/wolverhampton","703155","Critiqom Limited","026898","5,289.79","Comms - Postage","130184010","25/08/2017","Revenues & Benefits","Revenues","R4503"
"Wolverhampton City Council","http://opendatacommunities.org/id/metropolitan-district-council/wolverhampton","703155","Critiqom Limited","026897","1,484.65","Stationery","130183423","25/08/2017","Revenues & Benefits","Revenues","R4308"
"Wolverhampton City Council","http://opendatacommunities.org/id/metropolitan-district-council/wolverhampton","703155","Critiqom Limited","026897","-0.07","Stationery","130183423","25/08/2017","Revenues & Benefits","Revenues","R4308"
"Wolverhampton City Council","http://opendatacommunities.org/id/metropolitan-district-council/wolverhampton","703192","Dr Libberton and Ram","M2016Q4.15SHIURFQ","100.00","TPP - Public Health Contracts","190367614","25/08/2017","Contracts","Sexual Health","R5060"
"Wolverhampton City Council","http://opendatacommunities.org/id/metropolitan-district-council/wolverhampton","703192","Dr Libberton and Ram","M2016Q415HL1IPRQ","23.00","TPP - Public Health Contracts","190367616","25/08/2017","Contracts","Healthy Lifestyles","R5060"
"Wolverhampton City Council","http://opendatacommunities.org/id/metropolitan-district-council/wolverhampton","703192","Dr Libberton and Ram","M2016Q415HL2COMQ","575.00","TPP - Public Health Contracts","190367617","25/08/2017","Contracts","Healthy Lifestyles","R5060"
"Wolverhampton City Council","http://opendatacommunities.org/id/metropolitan-district-council/wolverhampton","703192","Dr Libberton and Ram","M2016Q415SMSCMRQ","1,391.00","TPP - Public Health Contracts","190367609","25/08/2017","Contracts","Alcohol and Drug","R5060"
"Wolverhampton City Council","http://opendatacommunities.org/id/metropolitan-district-council/wolverhampton","703192","Dr Libberton and Ram","M2016Q415SHCHLAQ","48.00","TPP - Public Health Contracts","190367615","25/08/2017","Contracts","Sexual Health","R5060"
"Wolverhampton City Council","http://opendatacommunities.org/id/metropolitan-district-council/wolverhampton","703192","Dr Libberton and Ram","M2016Q415HL312TQ","135.00","TPP - Public Health Contracts","190367619","25/08/2017","Contracts","Healthy Lifestyles","R5060"
"Wolverhampton City Council","http://opendatacommunities.org/id/metropolitan-district-council/wolverhampton","703192","Dr Libberton and Ram","M2016Q4.15SHIUDRQ","50.00","TPP - Public Health Contracts","190367613","25/08/2017","Contracts","Sexual Health","R5060"
"Wolverhampton City Council","http://opendatacommunities.org/id/metropolitan-district-council/wolverhampton","703192","Dr Libberton and Ram","M2016Q415SHIUFRQ","75.00","TPP - Public Health Contracts","190367612","25/08/2017","Contracts","Sexual Health","R5060"
"Wolverhampton City Council","http://opendatacommunities.org/id/metropolitan-district-council/wolverhampton","703192","Dr Libberton and Ram","M2016Q415HL304NQ","700.00","TPP - Public Health Contracts","190367618","25/08/2017","Contracts","Healthy Lifestyles","R5060"
"Wolverhampton City Council","http://opendatacommunities.org/id/metropolitan-district-council/wolverhampton","703192","Dr Libberton and Ram","M2016Q415SHIUDFQ","300.00","TPP - Public Health Contracts","190367611","25/08/2017","Contracts","Sexual Health","R5060"
"Wolverhampton City Council","http://opendatacommunities.org/id/metropolitan-district-council/wolverhampton","703192","Dr Libberton and Ram","M2016Q415SHCIFBQ","80.00","TPP - Public Health Contracts","190367610","25/08/2017","Contracts","Sexual Health","R5060"
"Wolverhampton City Council","http://opendatacommunities.org/id/metropolitan-district-council/wolverhampton","703210","Dr N J Whitehouse","M2017Q115HL1IHCQ","1.40","TPP - Public Health Contracts","190363823","09/08/2017","Contracts","Healthy Lifestyles","R5060"
"Wolverhampton City Council","http://opendatacommunities.org/id/metropolitan-district-council/wolverhampton","703210","Dr N J Whitehouse","M2017Q115HL1IPRQ","14.00","TPP - Public Health Contracts","190363824","09/08/2017","Contracts","Healthy Lifestyles","R5060"
"Wolverhampton City Council","http://opendatacommunities.org/id/metropolitan-district-council/wolverhampton","703210","Dr N J Whitehouse","M2017Q115HL304NQ","70.00","TPP - Public Health Contracts","190363825","09/08/2017","Contracts","Healthy Lifestyles","R5060"
"Wolverhampton City Council","http://opendatacommunities.org/id/metropolitan-district-council/wolverhampton","703210","Dr N J Whitehouse","Inv.  PP16091  M92640  April - June 2017","1,435.00","TPP - Public Health Contracts","190364290","11/08/2017","Contracts","Wider determinants","R5060"
"Wolverhampton City Council","http://opendatacommunities.org/id/metropolitan-district-council/wolverhampton","703220","Dr Pr Venkataramanan Dr Sk Julka","M2017Q115SHCHLAQ","16.00","TPP - Public Health Contracts","190363821","09/08/2017","Contracts","Sexual Health","R5060"
"Wolverhampton City Council","http://opendatacommunities.org/id/metropolitan-district-council/wolverhampton","703220","Dr Pr Venkataramanan Dr Sk Julka","M2017Q115HL2COMQ","175.00","TPP - Public Health Contracts","190363822","09/08/2017","Contracts","Healthy Lifestyles","R5060"
"Wolverhampton City Council","http://opendatacommunities.org/id/metropolitan-district-council/wolverhampton","703221","Dr R Kharwadkar","Inv.  3  M92629  April - June 2017","140.00","TPP - Public Health Contracts","190364291","11/08/2017","Contracts","Wider determinants","R5060"
"Wolverhampton City Council","http://opendatacommunities.org/id/metropolitan-district-council/wolverhampton","703230","Dr T.Marton","DRTM/AD/240616","89.80","Services - Professional Fees","190365259","16/08/2017","Democratic Services","Coroners Service","R4400"
"Wolverhampton City Council","http://opendatacommunities.org/id/metropolitan-district-council/wolverhampton","703251","Drive DeVilbiss Health Care (Drive Med)","0001120857","401.70","Equipment - Purchase","130182371","02/08/2017","Independent Living Service","Independent Living Service","R4000"
"Wolverhampton City Council","http://opendatacommunities.org/id/metropolitan-district-council/wolverhampton","703251","Drive DeVilbiss Health Care (Drive Med)","0001120857","442.50","Equipment - Purchase","130182371","02/08/2017","Independent Living Service","Independent Living Service","R4000"
"Wolverhampton City Council","http://opendatacommunities.org/id/metropolitan-district-council/wolverhampton","703251","Drive DeVilbiss Health Care (Drive Med)","0001120857","215.85","Equipment - Purchase","130182371","02/08/2017","Independent Living Service","Independent Living Service","R4000"
"Wolverhampton City Council","http://opendatacommunities.org/id/metropolitan-district-council/wolverhampton","703251","Drive DeVilbiss Health Care (Drive Med)","0001120857","230.80","Equipment - Purchase","130182371","02/08/2017","Independent Living Service","Independent Living Service","R4000"
"Wolverhampton City Council","http://opendatacommunities.org/id/metropolitan-district-council/wolverhampton","703251","Drive DeVilbiss Health Care (Drive Med)","0001120857","103.60","Equipment - Purchase","130182371","02/08/2017","Independent Living Service","Independent Living Service","R4000"
"Wolverhampton City Council","http://opendatacommunities.org/id/metropolitan-district-council/wolverhampton","703251","Drive DeVilbiss Health Care (Drive Med)","0001131670","24.92","Equipment - R & M","130186007","30/08/2017","Independent Living Service","Independent Living Service","R4003"
"Wolverhampton City Council","http://opendatacommunities.org/id/metropolitan-district-council/wolverhampton","703251","Drive DeVilbiss Health Care (Drive Med)","0001131670","50.40","Equipment - R & M","130186007","30/08/2017","Independent Living Service","Independent Living Service","R4003"
"Wolverhampton City Council","http://opendatacommunities.org/id/metropolitan-district-council/wolverhampton","703251","Drive DeVilbiss Health Care (Drive Med)","0001120837","72.04","Equipment - Purchase","130182368","02/08/2017","Independent Living Service","Independent Living Service","R4000"
"Wolverhampton City Council","http://opendatacommunities.org/id/metropolitan-district-council/wolverhampton","703251","Drive DeVilbiss Health Care (Drive Med)","0001120837","70.40","Equipment - R & M","130182368","02/08/2017","Independent Living Service","Independent Living Service","R4003"
"Wolverhampton City Council","http://opendatacommunities.org/id/metropolitan-district-council/wolverhampton","703251","Drive DeVilbiss Health Care (Drive Med)","0001131669","461.60","Equipment - Purchase","130186006","30/08/2017","Independent Living Service","Independent Living Service","R4000"
"Wolverhampton City Council","http://opendatacommunities.org/id/metropolitan-district-council/wolverhampton","703251","Drive DeVilbiss Health Care (Drive Med)","0001131669","362.25","Equipment - Purchase","130186006","30/08/2017","Independent Living Service","Independent Living Service","R4000"
"Wolverhampton City Council","http://opendatacommunities.org/id/metropolitan-district-council/wolverhampton","703251","Drive DeVilbiss Health Care (Drive Med)","0001120855","1,159.00","Equipment - Purchase","130182369","04/08/2017","Independent Living Service","Independent Living Service","R4000"
"Wolverhampton City Council","http://opendatacommunities.org/id/metropolitan-district-council/wolverhampton","703251","Drive DeVilbiss Health Care (Drive Med)","0001120855","500.00","Equipment - Purchase","130182369","04/08/2017","Independent Living Service","Independent Living Service","R4000"
"Wolverhampton City Council","http://opendatacommunities.org/id/metropolitan-district-council/wolverhampton","703251","Drive DeVilbiss Health Care (Drive Med)","0001120856","828.00","Equipment - Purchase","130182370","02/08/2017","Independent Living Service","Independent Living Service","R4000"
"Wolverhampton City Council","http://opendatacommunities.org/id/metropolitan-district-council/wolverhampton","703251","Drive DeVilbiss Health Care (Drive Med)","0001120856","754.00","Equipment - Purchase","130182370","02/08/2017","Independent Living Service","Independent Living Service","R4000"
"Wolverhampton City Council","http://opendatacommunities.org/id/metropolitan-district-council/wolverhampton","703251","Drive DeVilbiss Health Care (Drive Med)","0001131224","70.65","Equipment - R & M","130186005","30/08/2017","Independent Living Service","Independent Living Service","R4003"
"Wolverhampton City Council","http://opendatacommunities.org/id/metropolitan-district-council/wolverhampton","703251","Drive DeVilbiss Health Care (Drive Med)","0001121809","507.16","Equipment - Purchase","130182687","02/08/2017","Independent Living Service","Independent Living Service","R4000"
"Wolverhampton City Council","http://opendatacommunities.org/id/metropolitan-district-council/wolverhampton","703260","Drs R Bilas & A Thomas","M2017Q115HL312TQa","45.00","TPP - Public Health Contracts","190363817","09/08/2017","Contracts","Healthy Lifestyles","R5060"
"Wolverhampton City Council","http://opendatacommunities.org/id/metropolitan-district-council/wolverhampton","703260","Drs R Bilas & A Thomas","M2017Q115HL304NQ","70.00","TPP - Public Health Contracts","190363811","09/08/2017","Contracts","Healthy Lifestyles","R5060"
"Wolverhampton City Council","http://opendatacommunities.org/id/metropolitan-district-council/wolverhampton","703260","Drs R Bilas & A Thomas","M2017Q115HL304NQ","140.00","TPP - Public Health Contracts","190363813","09/08/2017","Contracts","Healthy Lifestyles","R5060"
"Wolverhampton City Council","http://opendatacommunities.org/id/metropolitan-district-council/wolverhampton","703260","Drs R Bilas & A Thomas","M2017Q115HL304TQa","10.00","TPP - Public Health Contracts","190363815","09/08/2017","Contracts","Healthy Lifestyles","R5060"
"Wolverhampton City Council","http://opendatacommunities.org/id/metropolitan-district-council/wolverhampton","703260","Drs R Bilas & A Thomas","M2017Q115HL304NQa","140.00","TPP - Public Health Contracts","190363814","09/08/2017","Contracts","Healthy Lifestyles","R5060"
"Wolverhampton City Council","http://opendatacommunities.org/id/metropolitan-district-council/wolverhampton","703260","Drs R Bilas & A Thomas","M2017Q115HL304NQc","140.00","TPP - Public Health Contracts","190363820","09/08/2017","Contracts","Healthy Lifestyles","R5060"
"Wolverhampton City Council","http://opendatacommunities.org/id/metropolitan-district-council/wolverhampton","703260","Drs R Bilas & A Thomas","M2017Q115HL304NQ","280.00","TPP - Public Health Contracts","190363818","09/08/2017","Contracts","Healthy Lifestyles","R5060"
"Wolverhampton City Council","http://opendatacommunities.org/id/metropolitan-district-council/wolverhampton","703260","Drs R Bilas & A Thomas","M2017Q115HL312NQ","30.00","TPP - Public Health Contracts","190363812","09/08/2017","Contracts","Healthy Lifestyles","R5060"
"Wolverhampton City Council","http://opendatacommunities.org/id/metropolitan-district-council/wolverhampton","703260","Drs R Bilas & A Thomas","M2017Q115HL312TQb","90.00","TPP - Public Health Contracts","190363819","09/08/2017","Contracts","Healthy Lifestyles","R5060"
"Wolverhampton City Council","http://opendatacommunities.org/id/metropolitan-district-council/wolverhampton","703260","Drs R Bilas & A Thomas","M2017Q115HL312NQ","30.00","TPP - Public Health Contracts","190363816","09/08/2017","Contracts","Healthy Lifestyles","R5060"
"Wolverhampton City Council","http://opendatacommunities.org/id/metropolitan-district-council/wolverhampton","703269","D-Tox","310884","73.06","Room Hire","130183232","25/08/2017","Facilities Management","Culwell Street Depot","R2201"
"Wolverhampton City Council","http://opendatacommunities.org/id/metropolitan-district-council/wolverhampton","703269","D-Tox","310883","73.08","Room Hire","130183231","25/08/2017","Facilities Management","Hickman Avenue Depot","R2201"
"Wolverhampton City Council","http://opendatacommunities.org/id/metropolitan-district-council/wolverhampton","703273","Dudley College","800003060","34,627.00","TPP - Alternative Provision of Education","130185169","18/08/2017","Standards and Vulnerable Pupils","Post 16 SEN Provision","R5037"
"Wolverhampton City Council","http://opendatacommunities.org/id/metropolitan-district-council/wolverhampton","703273","Dudley College","800002912","12,504.06","TPP - Alternative Provision of Education","130183052","04/08/2017","Standards and Vulnerable Pupils","Post 16 SEN Provision","R5037"
"Wolverhampton City Council","http://opendatacommunities.org/id/metropolitan-district-council/wolverhampton","703274","Dudley Lodge","P148735 23071720170801","5,689.29","TPP - Residential Care - Long Term","190362611","02/08/2017","Child Protection","CIN - Valley Park Mast - Area 5","R5400"
"Wolverhampton City Council","http://opendatacommunities.org/id/metropolitan-district-council/wolverhampton","703274","Dudley Lodge","P149876 20081720170804","48,042.86","TPP - Residential Care - Long Term","190363611","09/08/2017","Child Protection","CIN - Middleway Green MAST Area 1","R5400"
"Wolverhampton City Council","http://opendatacommunities.org/id/metropolitan-district-council/wolverhampton","703274","Dudley Lodge","P151581 17091720170829","29,955.71","TPP - Residential Care - Long Term","190368902","30/08/2017","Child Protection","CIN - Priory Green MAST - Area 6","R5400"
"Wolverhampton City Council","http://opendatacommunities.org/id/metropolitan-district-council/wolverhampton","703274","Dudley Lodge","P151581 17091720170829","2,260.71","TPP - Residential Care - Long Term","190368902","30/08/2017","Child Protection","CIN - Priory Green MAST - Area 6","R5400"
"Wolverhampton City Council","http://opendatacommunities.org/id/metropolitan-district-council/wolverhampton","703274","Dudley Lodge","P151581 17091720170829","3,068.57","TPP - Residential Care - Long Term","190368902","30/08/2017","Child Protection","CIN - Priory Green MAST - Area 6","R5400"
"Wolverhampton City Council","http://opendatacommunities.org/id/metropolitan-district-council/wolverhampton","703274","Dudley Lodge","P151581 17091720170829","14,831.43","TPP - Residential Care - Long Term","190368902","30/08/2017","Child Protection","CIN - Priory Green MAST - Area 6","R5400"
"Wolverhampton City Council","http://opendatacommunities.org/id/metropolitan-district-council/wolverhampton","703274","Dudley Lodge","P151581 17091720170829","14,016.43","TPP - Residential Care - Long Term","190368902","30/08/2017","Child Protection","CIN - Priory Green MAST - Area 6","R5400"
"Wolverhampton City Council","http://opendatacommunities.org/id/metropolitan-district-council/wolverhampton","703274","Dudley Lodge","11633","14,787.14","TPP - Residential Care - Short Term","130183782","11/08/2017","Child Protection","CIN/CP Social Work Unit - Area 3","R5401"
"Wolverhampton City Council","http://opendatacommunities.org/id/metropolitan-district-council/wolverhampton","703275","Dudley M B C","20026404 422653","7,635.60","TPP - Social Care Support Services","130166082","02/08/2017","Older People Care Purchasing","OP Care Purchasing (Block Placements)","R5501"
"Wolverhampton City Council","http://opendatacommunities.org/id/metropolitan-district-council/wolverhampton","703275","Dudley M B C","20026404 438931","41,000.00","TPP - Payments to Local Authorities","130185518","23/08/2017","Strategic Organisation Development","Special Needs Unit","R5100"
"Wolverhampton City Council","http://opendatacommunities.org/id/metropolitan-district-council/wolverhampton","703275","Dudley M B C","20026404 438224","1,500.00","Services - Professional Fees","130183053","09/08/2017","Central Corporate Budgets","Corporate Directorate Provision","R4400"
"Wolverhampton City Council","http://opendatacommunities.org/id/metropolitan-district-council/wolverhampton","703275","Dudley M B C","20026404 422656","23,880.54","TPP - Social Care Support Services","130166083","23/08/2017","Older People Care Purchasing","OP Care Purchasing (Block Placements)","R5501"
"Wolverhampton City Council","http://opendatacommunities.org/id/metropolitan-district-council/wolverhampton","703288","Dun & Bradstreet Limited","1461677","9,850.00","Services - Professional Fees","130183536","11/08/2017","Commercial Services","Corporate Procurement Unit","R4400"
"Wolverhampton City Council","http://opendatacommunities.org/id/metropolitan-district-council/wolverhampton","703288","Dun & Bradstreet Limited","1461843","432.00","Services - Professional Fees","130183540","16/08/2017","Commercial Services","Corporate Procurement Unit","R4400"
"Wolverhampton City Council","http://opendatacommunities.org/id/metropolitan-district-council/wolverhampton","703288","Dun & Bradstreet Limited","1461843","-432.00","Services - Professional Fees","130183540","16/08/2017","Commercial Services","Corporate Procurement Unit","R4400"
"Wolverhampton City Council","http://opendatacommunities.org/id/metropolitan-district-council/wolverhampton","703288","Dun & Bradstreet Limited","1461843","4.32","Services - Professional Fees","130183540","16/08/2017","Commercial Services","Corporate Procurement Unit","R4400"
"Wolverhampton City Council","http://opendatacommunities.org/id/metropolitan-district-council/wolverhampton","703289","Duncan Street Primary Care Centre","Inv. 4917  M92012 April - June 2017","1,400.00","TPP - Public Health Contracts","190364286","11/08/2017","Contracts","Wider determinants","R5060"
"Wolverhampton City Council","http://opendatacommunities.org/id/metropolitan-district-council/wolverhampton","703303","DWP (Dept For Work & Pensions)","My Ref: WT160116/LP Yr Ref: ILP-574 - Hunter","665.00","Insurance - General","190362860","04/08/2017","Audit Services","Legal Liability","R4962"
"Wolverhampton City Council","http://opendatacommunities.org/id/metropolitan-district-council/wolverhampton","703318","E A Derry","802","2,800.00","Cleaning Supplies and Materials","130183233","25/08/2017","Environmental Maintenance","Ground Maintenance West","R2705"
"Wolverhampton City Council","http://opendatacommunities.org/id/metropolitan-district-council/wolverhampton","703318","E A Derry","796","4,538.38","Cleaning Supplies and Materials","130180677","09/08/2017","Environmental Maintenance","Ground Maintenance East","R2705"
"Wolverhampton City Council","http://opendatacommunities.org/id/metropolitan-district-council/wolverhampton","703318","E A Derry","803","1,588.68","Cleaning Supplies and Materials","130183234","25/08/2017","Environmental Maintenance","Ground Maintenance East","R2705"
"Wolverhampton City Council","http://opendatacommunities.org/id/metropolitan-district-council/wolverhampton","703318","E A Derry","801","320.00","Cleaning Supplies and Materials","130182228","23/08/2017","Visitor Economy","Northicote Farm","R2705"
"Wolverhampton City Council","http://opendatacommunities.org/id/metropolitan-district-council/wolverhampton","703318","E A Derry","797","320.00","Cleaning Supplies and Materials","130181375","11/08/2017","Visitor Economy","Northicote Farm","R2705"
"Wolverhampton City Council","http://opendatacommunities.org/id/metropolitan-district-council/wolverhampton","703332","E.On (Metering Services Only!!)","7109877","195.00","Electricity","190365514","18/08/2017","Corporate Asset Management","Central Utilities to Recharge","R2100"
"Wolverhampton City Council","http://opendatacommunities.org/id/metropolitan-district-council/wolverhampton","703332","E.On (Metering Services Only!!)","7108064","310.00","Electricity","190362846","04/08/2017","Corporate Asset Management","Central Utilities to Recharge","R2100"
"Wolverhampton City Council","http://opendatacommunities.org/id/metropolitan-district-council/wolverhampton","703332","E.On (Metering Services Only!!)","7111765","195.00","Electricity","190368704","30/08/2017","Corporate Asset Management","Central Utilities to Recharge","R2100"
"Wolverhampton City Council","http://opendatacommunities.org/id/metropolitan-district-council/wolverhampton","703332","E.On (Metering Services Only!!)","7108063","330.00","Electricity","190362845","04/08/2017","Corporate Asset Management","Central Utilities to Recharge","R2100"
"Wolverhampton City Council","http://opendatacommunities.org/id/metropolitan-district-council/wolverhampton","703332","E.On (Metering Services Only!!)","7109739","195.00","Electricity","190362356","02/08/2017","Corporate Asset Management","Central Utilities to Recharge","R2100"
"Wolverhampton City Council","http://opendatacommunities.org/id/metropolitan-district-council/wolverhampton","703333","E.On Energy","EON0016-010979382330","636.50","Electricity","190365260","16/08/2017","Housing Revenue Account","Hostels / Outreach","R2100"
"Wolverhampton City Council","http://opendatacommunities.org/id/metropolitan-district-council/wolverhampton","703334","E.On(Consumption Of Gas/Elec Units).","H14C1CC833","139.28","Electricity","190366787","23/08/2017","Corporate Asset Management","Central Utilities to Recharge","R2100"
"Wolverhampton City Council","http://opendatacommunities.org/id/metropolitan-district-council/wolverhampton","703334","E.On(Consumption Of Gas/Elec Units).","H14B7CC3FC","34.48","Electricity","190366786","23/08/2017","Corporate Asset Management","Central Utilities to Recharge","R2100"
"Wolverhampton City Council","http://opendatacommunities.org/id/metropolitan-district-council/wolverhampton","703338","Eagle Envelopes Limited","22186444","106.34","Printing","130179780","02/08/2017","ICTS","Document Centre - General","R4300"
"Wolverhampton City Council","http://opendatacommunities.org/id/metropolitan-district-council/wolverhampton","703339","Eagle Music (Jim Duncan)","276","600.00","Marketing \ Non-staff advertising","130186165","30/08/2017","Visitor Economy","Visitor Economy - Development","R4317"
"Wolverhampton City Council","http://opendatacommunities.org/id/metropolitan-district-council/wolverhampton","703339","Eagle Music (Jim Duncan)","276","100.00","Hire of Vehicles","130186165","30/08/2017","Visitor Economy","Visitor Economy - Development","R3200"
"Wolverhampton City Council","http://opendatacommunities.org/id/metropolitan-district-council/wolverhampton","703371","Eclipse Access Solutions Limited","0012589","1,485.00","Construction and Conversion","130183235","30/08/2017","","Adaptations for People with Disabilites","C1100"
"Wolverhampton City Council","http://opendatacommunities.org/id/metropolitan-district-council/wolverhampton","703371","Eclipse Access Solutions Limited","17/0112/SAG","4,820.00","Grants paid out","190363881","09/08/2017","","Disabled Facilities Grants","C5000"
"Wolverhampton City Council","http://opendatacommunities.org/id/metropolitan-district-council/wolverhampton","703371","Eclipse Access Solutions Limited","16/0736/SAG","5,110.00","Grants paid out","190365830","18/08/2017","","Disabled Facilities Grants","C5000"
"Wolverhampton City Council","http://opendatacommunities.org/id/metropolitan-district-council/wolverhampton","703371","Eclipse Access Solutions Limited","0012584","375.00","Adaptations","130181493","16/08/2017","Independent Living Service","Independent Living Service","R4411"
"Wolverhampton City Council","http://opendatacommunities.org/id/metropolitan-district-council/wolverhampton","703371","Eclipse Access Solutions Limited","0012595","375.00","Adaptations","130183429","30/08/2017","Independent Living Service","Independent Living Service","R4411"
"Wolverhampton City Council","http://opendatacommunities.org/id/metropolitan-district-council/wolverhampton","703371","Eclipse Access Solutions Limited","16/0458/SAG","5,760.00","Grants paid out","190365828","18/08/2017","","Disabled Facilities Grants","C5000"
"Wolverhampton City Council","http://opendatacommunities.org/id/metropolitan-district-council/wolverhampton","703371","Eclipse Access Solutions Limited","0012593","95.00","Adaptations","130183428","30/08/2017","Independent Living Service","Independent Living Service","R4411"
"Wolverhampton City Council","http://opendatacommunities.org/id/metropolitan-district-council/wolverhampton","703371","Eclipse Access Solutions Limited","0012574","985.00","Construction and Conversion","130180859","09/08/2017","","Adaptations for People with Disabilites","C1100"
"Wolverhampton City Council","http://opendatacommunities.org/id/metropolitan-district-council/wolverhampton","703371","Eclipse Access Solutions Limited","0012569","375.00","Adaptations","130180678","09/08/2017","Independent Living Service","Independent Living Service","R4411"
"Wolverhampton City Council","http://opendatacommunities.org/id/metropolitan-district-council/wolverhampton","703371","Eclipse Access Solutions Limited","16/0819/SAG","1,760.00","Grants paid out","190362949","04/08/2017","","Disabled Facilities Grants","C5000"
"Wolverhampton City Council","http://opendatacommunities.org/id/metropolitan-district-council/wolverhampton","703371","Eclipse Access Solutions Limited","0012592","125.00","Adaptations","130183427","30/08/2017","Independent Living Service","Independent Living Service","R4411"
"Wolverhampton City Council","http://opendatacommunities.org/id/metropolitan-district-council/wolverhampton","703374","Econ Engineering Limited","S195615","71.54","Equipment - Purchase","190364651","16/08/2017","Fleet Services","Fleet Management","R4000"
"Wolverhampton City Council","http://opendatacommunities.org/id/metropolitan-district-council/wolverhampton","703377","Eden Brown Limited","1118940","499.89","Agency Staff","130181012","16/08/2017","Revenues & Benefits","Revenues","R1100"
"Wolverhampton City Council","http://opendatacommunities.org/id/metropolitan-district-council/wolverhampton","703377","Eden Brown Limited","1119994","1,111.60","Agency Staff","130182032","23/08/2017","Revenues & Benefits","Revenues","R1100"
"Wolverhampton City Council","http://opendatacommunities.org/id/metropolitan-district-council/wolverhampton","703377","Eden Brown Limited","1119998","1,484.00","Agency Staff","130182036","23/08/2017","Capital Programme","Head of Projects and Works","R1100"
"Wolverhampton City Council","http://opendatacommunities.org/id/metropolitan-district-council/wolverhampton","703377","Eden Brown Limited","1118019","999.78","Agency Staff","130180006","09/08/2017","Revenues & Benefits","Revenues","R1100"
"Wolverhampton City Council","http://opendatacommunities.org/id/metropolitan-district-council/wolverhampton","703377","Eden Brown Limited","1118020","1,484.00","Agency Staff","130180007","09/08/2017","Capital Programme","Head of Projects and Works","R1100"
"Wolverhampton City Council","http://opendatacommunities.org/id/metropolitan-district-council/wolverhampton","703377","Eden Brown Limited","1112772","1,080.00","Agency Staff","130181502","04/08/2017","Child Protection","Head of Service - CINCP","R1100"
"Wolverhampton City Council","http://opendatacommunities.org/id/metropolitan-district-council/wolverhampton","703377","Eden Brown Limited","1112772","-1,080.00","Agency Staff","130181502","04/08/2017","Child Protection","Head of Service - CINCP","R1100"
"Wolverhampton City Council","http://opendatacommunities.org/id/metropolitan-district-council/wolverhampton","703377","Eden Brown Limited","1112772","1,174.80","Agency Staff","130181502","04/08/2017","Child Protection","Head of Service - CINCP","R1100"
"Wolverhampton City Council","http://opendatacommunities.org/id/metropolitan-district-council/wolverhampton","703377","Eden Brown Limited","1110942","1,035.00","Agency Staff","130181500","04/08/2017","Child Protection","Head of Service - CINCP","R1100"
"Wolverhampton City Council","http://opendatacommunities.org/id/metropolitan-district-council/wolverhampton","703377","Eden Brown Limited","1110942","-1,035.00","Agency Staff","130181500","04/08/2017","Child Protection","Head of Service - CINCP","R1100"
"Wolverhampton City Council","http://opendatacommunities.org/id/metropolitan-district-council/wolverhampton","703377","Eden Brown Limited","1110942","1,125.85","Agency Staff","130181500","04/08/2017","Child Protection","Head of Service - CINCP","R1100"
"Wolverhampton City Council","http://opendatacommunities.org/id/metropolitan-district-council/wolverhampton","703377","Eden Brown Limited","1107776","1,665.00","Agency Staff","130181758","04/08/2017","Child Protection","Head of Service - CINCP","R1100"
"Wolverhampton City Council","http://opendatacommunities.org/id/metropolitan-district-council/wolverhampton","703377","Eden Brown Limited","1107776","-1,665.00","Agency Staff","130181758","04/08/2017","Child Protection","Head of Service - CINCP","R1100"
"Wolverhampton City Council","http://opendatacommunities.org/id/metropolitan-district-council/wolverhampton","703377","Eden Brown Limited","1107776","1,854.45","Agency Staff","130181758","04/08/2017","Child Protection","Head of Service - CINCP","R1100"
"Wolverhampton City Council","http://opendatacommunities.org/id/metropolitan-district-council/wolverhampton","703377","Eden Brown Limited","1121009","1,825.00","Agency Staff","130183057","30/08/2017","Capital Programme","Head of Projects and Works","R1100"
"Wolverhampton City Council","http://opendatacommunities.org/id/metropolitan-district-council/wolverhampton","703377","Eden Brown Limited","1117009","973.47","Agency Staff","130178886","02/08/2017","Revenues & Benefits","Revenues","R1100"
"Wolverhampton City Council","http://opendatacommunities.org/id/metropolitan-district-council/wolverhampton","703377","Eden Brown Limited","1117007","1,642.50","Agency Staff","130178884","02/08/2017","Capital Programme","Head of Projects and Works","R1100"
"Wolverhampton City Council","http://opendatacommunities.org/id/metropolitan-district-council/wolverhampton","703377","Eden Brown Limited","1121006","1,111.60","Agency Staff","130183054","30/08/2017","Revenues & Benefits","Revenues","R1100"
"Wolverhampton City Council","http://opendatacommunities.org/id/metropolitan-district-council/wolverhampton","703377","Eden Brown Limited","1117005","1,750.00","Agency Staff","130182031","02/08/2017","Capital Programme","Head of Projects and Works","R1100"
"Wolverhampton City Council","http://opendatacommunities.org/id/metropolitan-district-council/wolverhampton","703377","Eden Brown Limited","1118937","499.89","Agency Staff","130181009","16/08/2017","Revenues & Benefits","Revenues","R1100"
"Wolverhampton City Council","http://opendatacommunities.org/id/metropolitan-district-council/wolverhampton","703377","Eden Brown Limited","1118022","1,045.82","Agency Staff","130180009","09/08/2017","Revenues & Benefits","Revenues","R1100"
"Wolverhampton City Council","http://opendatacommunities.org/id/metropolitan-district-council/wolverhampton","703377","Eden Brown Limited","1119997","1,750.00","Agency Staff","130182035","23/08/2017","Capital Programme","Head of Projects and Works","R1100"
"Wolverhampton City Council","http://opendatacommunities.org/id/metropolitan-district-council/wolverhampton","703377","Eden Brown Limited","1119995","736.68","Agency Staff","130182033","23/08/2017","Revenues & Benefits","Revenues","R1100"
"Wolverhampton City Council","http://opendatacommunities.org/id/metropolitan-district-council/wolverhampton","703377","Eden Brown Limited","1121007","999.78","Agency Staff","130183055","30/08/2017","Revenues & Benefits","Revenues","R1100"
"Wolverhampton City Council","http://opendatacommunities.org/id/metropolitan-district-council/wolverhampton","703377","Eden Brown Limited","1117006","973.47","Agency Staff","130178883","02/08/2017","Revenues & Benefits","Revenues","R1100"
"Wolverhampton City Council","http://opendatacommunities.org/id/metropolitan-district-council/wolverhampton","703377","Eden Brown Limited","1117002","1,105.02","Agency Staff","130178881","02/08/2017","Revenues & Benefits","Revenues","R1100"
"Wolverhampton City Council","http://opendatacommunities.org/id/metropolitan-district-council/wolverhampton","703377","Eden Brown Limited","1115843","1,750.00","Agency Staff","130182029","02/08/2017","Capital Programme","Head of Projects and Works","R1100"
"Wolverhampton City Council","http://opendatacommunities.org/id/metropolitan-district-council/wolverhampton","703377","Eden Brown Limited","1103842","1,665.00","Agency Staff","130181494","04/08/2017","Child Protection","Head of Service - CINCP","R1100"
"Wolverhampton City Council","http://opendatacommunities.org/id/metropolitan-district-council/wolverhampton","703377","Eden Brown Limited","1103842","-1,665.00","Agency Staff","130181494","04/08/2017","Child Protection","Head of Service - CINCP","R1100"
"Wolverhampton City Council","http://opendatacommunities.org/id/metropolitan-district-council/wolverhampton","703377","Eden Brown Limited","1103842","1,856.90","Agency Staff","130181494","04/08/2017","Child Protection","Head of Service - CINCP","R1100"
"Wolverhampton City Council","http://opendatacommunities.org/id/metropolitan-district-council/wolverhampton","703377","Eden Brown Limited","1108889","1,485.00","Agency Staff","130181498","04/08/2017","Child Protection","Head of Service - CINCP","R1100"
"Wolverhampton City Council","http://opendatacommunities.org/id/metropolitan-district-council/wolverhampton","703377","Eden Brown Limited","1113917","1,080.00","Agency Staff","130181503","04/08/2017","Child Protection","Head of Service - CINCP","R1100"
"Wolverhampton City Council","http://opendatacommunities.org/id/metropolitan-district-council/wolverhampton","703377","Eden Brown Limited","1113917","-1,080.00","Agency Staff","130181503","04/08/2017","Child Protection","Head of Service - CINCP","R1100"
"Wolverhampton City Council","http://opendatacommunities.org/id/metropolitan-district-council/wolverhampton","703377","Eden Brown Limited","1108889","-1,485.00","Agency Staff","130181498","04/08/2017","Child Protection","Head of Service - CINCP","R1100"
"Wolverhampton City Council","http://opendatacommunities.org/id/metropolitan-district-council/wolverhampton","703377","Eden Brown Limited","1108889","1,643.15","Agency Staff","130181498","04/08/2017","Child Protection","Head of Service - CINCP","R1100"
"Wolverhampton City Council","http://opendatacommunities.org/id/metropolitan-district-council/wolverhampton","703377","Eden Brown Limited","1113917","1,189.60","Agency Staff","130181503","04/08/2017","Child Protection","Head of Service - CINCP","R1100"
"Wolverhampton City Council","http://opendatacommunities.org/id/metropolitan-district-council/wolverhampton","703377","Eden Brown Limited","1105673","1,665.00","Agency Staff","130181496","04/08/2017","Child Protection","Head of Service - CINCP","R1100"
"Wolverhampton City Council","http://opendatacommunities.org/id/metropolitan-district-council/wolverhampton","703377","Eden Brown Limited","1105673","-1,665.00","Agency Staff","130181496","04/08/2017","Child Protection","Head of Service - CINCP","R1100"
"Wolverhampton City Council","http://opendatacommunities.org/id/metropolitan-district-council/wolverhampton","703377","Eden Brown Limited","1105673","1,827.65","Agency Staff","130181496","04/08/2017","Child Protection","Head of Service - CINCP","R1100"
"Wolverhampton City Council","http://opendatacommunities.org/id/metropolitan-district-council/wolverhampton","703377","Eden Brown Limited","1109939","1,620.00","Agency Staff","130181499","04/08/2017","Child Protection","Head of Service - CINCP","R1100"
"Wolverhampton City Council","http://opendatacommunities.org/id/metropolitan-district-council/wolverhampton","703377","Eden Brown Limited","1109939","-1,620.00","Agency Staff","130181499","04/08/2017","Child Protection","Head of Service - CINCP","R1100"
"Wolverhampton City Council","http://opendatacommunities.org/id/metropolitan-district-council/wolverhampton","703377","Eden Brown Limited","1109939","1,773.90","Agency Staff","130181499","04/08/2017","Child Protection","Head of Service - CINCP","R1100"
"Wolverhampton City Council","http://opendatacommunities.org/id/metropolitan-district-council/wolverhampton","703377","Eden Brown Limited","1114967","1,147.50","Agency Staff","130181504","04/08/2017","Child Protection","Head of Service - CINCP","R1100"
"Wolverhampton City Council","http://opendatacommunities.org/id/metropolitan-district-council/wolverhampton","703377","Eden Brown Limited","1114967","-1,147.50","Agency Staff","130181504","04/08/2017","Child Protection","Head of Service - CINCP","R1100"
"Wolverhampton City Council","http://opendatacommunities.org/id/metropolitan-district-council/wolverhampton","703377","Eden Brown Limited","1114967","1,248.23","Agency Staff","130181504","04/08/2017","Child Protection","Head of Service - CINCP","R1100"
"Wolverhampton City Council","http://opendatacommunities.org/id/metropolitan-district-council/wolverhampton","703377","Eden Brown Limited","1121010","1,019.51","Agency Staff","130183058","30/08/2017","Revenues & Benefits","Revenues","R1100"
"Wolverhampton City Council","http://opendatacommunities.org/id/metropolitan-district-council/wolverhampton","703377","Eden Brown Limited","1115848","81.00","Agency Staff","130182030","02/08/2017","Capital Programme","Head of Projects and Works","R1100"
"Wolverhampton City Council","http://opendatacommunities.org/id/metropolitan-district-council/wolverhampton","703377","Eden Brown Limited","3H119594CR","-937.50","Agency Staff","130185981","30/08/2017","Welfare Rights & Financial Assessment","Local Welfare Assistance - Administration","R1100"
"Wolverhampton City Council","http://opendatacommunities.org/id/metropolitan-district-council/wolverhampton","703377","Eden Brown Limited","1115153","1,750.00","Agency Staff","130182028","02/08/2017","Capital Programme","Head of Projects and Works","R1100"
"Wolverhampton City Council","http://opendatacommunities.org/id/metropolitan-district-council/wolverhampton","703377","Eden Brown Limited","1112780","1,400.00","Agency Staff","130182026","02/08/2017","Capital Programme","Head of Projects and Works","R1100"
"Wolverhampton City Council","http://opendatacommunities.org/id/metropolitan-district-council/wolverhampton","703377","Eden Brown Limited","1118015","1,137.91","Agency Staff","130180004","09/08/2017","Revenues & Benefits","Revenues","R1100"
"Wolverhampton City Council","http://opendatacommunities.org/id/metropolitan-district-council/wolverhampton","703377","Eden Brown Limited","1120001","1,825.00","Agency Staff","130182039","23/08/2017","Capital Programme","Head of Projects and Works","R1100"
"Wolverhampton City Council","http://opendatacommunities.org/id/metropolitan-district-council/wolverhampton","703377","Eden Brown Limited","1120002","874.81","Agency Staff","130182040","23/08/2017","Revenues & Benefits","Revenues","R1100"
"Wolverhampton City Council","http://opendatacommunities.org/id/metropolitan-district-council/wolverhampton","703377","Eden Brown Limited","1120000","1,006.36","Agency Staff","130182038","23/08/2017","Revenues & Benefits","Revenues","R1100"
"Wolverhampton City Council","http://opendatacommunities.org/id/metropolitan-district-council/wolverhampton","703377","Eden Brown Limited","1118939","1,575.00","Agency Staff","130181011","16/08/2017","Capital Programme","Head of Projects and Works","R1100"
"Wolverhampton City Council","http://opendatacommunities.org/id/metropolitan-district-council/wolverhampton","703377","Eden Brown Limited","1118942","973.47","Agency Staff","130181014","16/08/2017","Revenues & Benefits","Revenues","R1100"
"Wolverhampton City Council","http://opendatacommunities.org/id/metropolitan-district-council/wolverhampton","703377","Eden Brown Limited","1118021","1,825.00","Agency Staff","130180008","09/08/2017","Capital Programme","Head of Projects and Works","R1100"
"Wolverhampton City Council","http://opendatacommunities.org/id/metropolitan-district-council/wolverhampton","703377","Eden Brown Limited","1118016","927.43","Agency Staff","130180005","09/08/2017","Revenues & Benefits","Revenues","R1100"
"Wolverhampton City Council","http://opendatacommunities.org/id/metropolitan-district-council/wolverhampton","703377","Eden Brown Limited","1119999","1,484.00","Agency Staff","130182037","23/08/2017","Capital Programme","Head of Projects and Works","R1100"
"Wolverhampton City Council","http://opendatacommunities.org/id/metropolitan-district-council/wolverhampton","703377","Eden Brown Limited","1119996","1,105.02","Agency Staff","130182034","23/08/2017","Revenues & Benefits","Revenues","R1100"
"Wolverhampton City Council","http://opendatacommunities.org/id/metropolitan-district-council/wolverhampton","703377","Eden Brown Limited","1118938","973.47","Agency Staff","130181010","16/08/2017","Revenues & Benefits","Revenues","R1100"
"Wolverhampton City Council","http://opendatacommunities.org/id/metropolitan-district-council/wolverhampton","703377","Eden Brown Limited","1118941","1,825.00","Agency Staff","130181013","16/08/2017","Capital Programme","Head of Projects and Works","R1100"
"Wolverhampton City Council","http://opendatacommunities.org/id/metropolitan-district-council/wolverhampton","703377","Eden Brown Limited","1121008","1,750.00","Agency Staff","130183056","30/08/2017","Capital Programme","Head of Projects and Works","R1100"
"Wolverhampton City Council","http://opendatacommunities.org/id/metropolitan-district-council/wolverhampton","703377","Eden Brown Limited","1121011","1,098.44","Agency Staff","130183059","30/08/2017","Revenues & Benefits","Revenues","R1100"
"Wolverhampton City Council","http://opendatacommunities.org/id/metropolitan-district-council/wolverhampton","703377","Eden Brown Limited","1117008","1,484.00","Agency Staff","130178885","02/08/2017","Capital Programme","Head of Projects and Works","R1100"
"Wolverhampton City Council","http://opendatacommunities.org/id/metropolitan-district-council/wolverhampton","703377","Eden Brown Limited","1117003","1,058.98","Agency Staff","130178882","02/08/2017","Revenues & Benefits","Revenues","R1100"
"Wolverhampton City Council","http://opendatacommunities.org/id/metropolitan-district-council/wolverhampton","703377","Eden Brown Limited","1113921","1,750.00","Agency Staff","130182027","02/08/2017","Capital Programme","Head of Projects and Works","R1100"
"Wolverhampton City Council","http://opendatacommunities.org/id/metropolitan-district-council/wolverhampton","703377","Eden Brown Limited","1105672","1,665.00","Agency Staff","130181495","04/08/2017","Child Protection","Head of Service - CINCP","R1100"
"Wolverhampton City Council","http://opendatacommunities.org/id/metropolitan-district-council/wolverhampton","703377","Eden Brown Limited","1105672","-1,665.00","Agency Staff","130181495","04/08/2017","Child Protection","Head of Service - CINCP","R1100"
"Wolverhampton City Council","http://opendatacommunities.org/id/metropolitan-district-council/wolverhampton","703377","Eden Brown Limited","1105672","1,829.45","Agency Staff","130181495","04/08/2017","Child Protection","Head of Service - CINCP","R1100"
"Wolverhampton City Council","http://opendatacommunities.org/id/metropolitan-district-council/wolverhampton","703377","Eden Brown Limited","1106695","720.00","Agency Staff","130181497","04/08/2017","Child Protection","Head of Service - CINCP","R1100"
"Wolverhampton City Council","http://opendatacommunities.org/id/metropolitan-district-council/wolverhampton","703377","Eden Brown Limited","1106695","-720.00","Agency Staff","130181497","04/08/2017","Child Protection","Head of Service - CINCP","R1100"
"Wolverhampton City Council","http://opendatacommunities.org/id/metropolitan-district-council/wolverhampton","703377","Eden Brown Limited","1106695","783.20","Agency Staff","130181497","04/08/2017","Child Protection","Head of Service - CINCP","R1100"
"Wolverhampton City Council","http://opendatacommunities.org/id/metropolitan-district-council/wolverhampton","703377","Eden Brown Limited","1111794","1,057.50","Agency Staff","130181501","04/08/2017","Child Protection","Head of Service - CINCP","R1100"
"Wolverhampton City Council","http://opendatacommunities.org/id/metropolitan-district-council/wolverhampton","703377","Eden Brown Limited","1111794","-1,057.50","Agency Staff","130181501","04/08/2017","Child Protection","Head of Service - CINCP","R1100"
"Wolverhampton City Council","http://opendatacommunities.org/id/metropolitan-district-council/wolverhampton","703377","Eden Brown Limited","1111794","1,150.33","Agency Staff","130181501","04/08/2017","Child Protection","Head of Service - CINCP","R1100"
"Wolverhampton City Council","http://opendatacommunities.org/id/metropolitan-district-council/wolverhampton","703381","Eden Support Limited","30071720170824","185.22","TPP - Day Care","190368090","25/08/2017","Learning Disabilities Care Purchasing","LD Care Purchasing (Spot Placements)","R5430"
"Wolverhampton City Council","http://opendatacommunities.org/id/metropolitan-district-council/wolverhampton","703381","Eden Support Limited","30071720170824","250.00","TPP - Day Care","190368090","25/08/2017","Learning Disabilities Care Purchasing","LD Care Purchasing (Spot Placements)","R5430"
"Wolverhampton City Council","http://opendatacommunities.org/id/metropolitan-district-council/wolverhampton","703381","Eden Support Limited","30071720170824","25.00","TPP - Day Care","190368090","25/08/2017","Learning Disabilities Care Purchasing","LD Care Purchasing (Spot Placements)","R5430"
"Wolverhampton City Council","http://opendatacommunities.org/id/metropolitan-district-council/wolverhampton","703381","Eden Support Limited","30071720170824","455.00","TPP - Day Care","190368090","25/08/2017","Learning Disabilities Care Purchasing","LD Care Purchasing (Spot Placements)","R5430"
"Wolverhampton City Council","http://opendatacommunities.org/id/metropolitan-district-council/wolverhampton","703381","Eden Support Limited","30071720170824","455.00","TPP - Day Care","190368090","25/08/2017","Learning Disabilities Care Purchasing","LD Care Purchasing (Spot Placements)","R5430"
"Wolverhampton City Council","http://opendatacommunities.org/id/metropolitan-district-council/wolverhampton","703381","Eden Support Limited","30071720170824","50.00","TPP - Day Care","190368090","25/08/2017","Learning Disabilities Care Purchasing","LD Care Purchasing (Spot Placements)","R5430"
"Wolverhampton City Council","http://opendatacommunities.org/id/metropolitan-district-council/wolverhampton","703381","Eden Support Limited","30071720170824","250.00","TPP - Day Care","190368090","25/08/2017","Learning Disabilities Care Purchasing","LD Care Purchasing (Spot Placements)","R5430"
"Wolverhampton City Council","http://opendatacommunities.org/id/metropolitan-district-council/wolverhampton","703381","Eden Support Limited","30071720170824","89.18","TPP - Day Care","190368090","25/08/2017","Learning Disabilities Care Purchasing","LD Care Purchasing (Spot Placements)","R5430"
"Wolverhampton City Council","http://opendatacommunities.org/id/metropolitan-district-council/wolverhampton","703381","Eden Support Limited","30071720170824","273.00","TPP - Day Care","190368090","25/08/2017","Learning Disabilities Care Purchasing","LD Care Purchasing (Spot Placements)","R5430"
"Wolverhampton City Council","http://opendatacommunities.org/id/metropolitan-district-council/wolverhampton","703381","Eden Support Limited","30071720170824","240.10","TPP - Day Care","190368090","25/08/2017","Learning Disabilities Care Purchasing","LD Care Purchasing (Spot Placements)","R5430"
"Wolverhampton City Council","http://opendatacommunities.org/id/metropolitan-district-council/wolverhampton","703381","Eden Support Limited","30071720170824","192.08","TPP - Day Care","190368090","25/08/2017","Learning Disabilities Care Purchasing","LD Care Purchasing (Spot Placements)","R5430"
"Wolverhampton City Council","http://opendatacommunities.org/id/metropolitan-district-council/wolverhampton","703381","Eden Support Limited","30071720170824","100.00","TPP - Day Care","190368090","25/08/2017","Learning Disabilities Care Purchasing","LD Care Purchasing (Spot Placements)","R5430"
"Wolverhampton City Council","http://opendatacommunities.org/id/metropolitan-district-council/wolverhampton","703381","Eden Support Limited","30071720170824","250.00","TPP - Day Care","190368090","25/08/2017","Learning Disabilities Care Purchasing","LD Care Purchasing (Spot Placements)","R5430"
"Wolverhampton City Council","http://opendatacommunities.org/id/metropolitan-district-council/wolverhampton","703381","Eden Support Limited","30071720170824","123.48","TPP - Day Care","190368090","25/08/2017","Learning Disabilities Care Purchasing","LD Care Purchasing (Spot Placements)","R5430"
"Wolverhampton City Council","http://opendatacommunities.org/id/metropolitan-district-council/wolverhampton","703381","Eden Support Limited","30071720170824","150.00","TPP - Day Care","190368090","25/08/2017","Learning Disabilities Care Purchasing","LD Care Purchasing (Spot Placements)","R5430"
"Wolverhampton City Council","http://opendatacommunities.org/id/metropolitan-district-council/wolverhampton","703381","Eden Support Limited","30071720170824","82.32","TPP - Day Care","190368090","25/08/2017","Learning Disabilities Care Purchasing","LD Care Purchasing (Spot Placements)","R5430"
"Wolverhampton City Council","http://opendatacommunities.org/id/metropolitan-district-council/wolverhampton","703381","Eden Support Limited","30071720170824","100.00","TPP - Day Care","190368090","25/08/2017","Learning Disabilities Care Purchasing","LD Care Purchasing (Spot Placements)","R5430"
"Wolverhampton City Council","http://opendatacommunities.org/id/metropolitan-district-council/wolverhampton","703381","Eden Support Limited","30071720170824","264.11","TPP - Day Care","190368090","25/08/2017","Learning Disabilities Care Purchasing","LD Care Purchasing (Spot Placements)","R5430"
"Wolverhampton City Council","http://opendatacommunities.org/id/metropolitan-district-council/wolverhampton","703381","Eden Support Limited","30071720170824","264.11","TPP - Day Care","190368090","25/08/2017","Learning Disabilities Care Purchasing","LD Care Purchasing (Spot Placements)","R5430"
"Wolverhampton City Council","http://opendatacommunities.org/id/metropolitan-district-council/wolverhampton","703381","Eden Support Limited","110617-20170731","250.00","TPP - Day Care","190362087","02/08/2017","Learning Disabilities Care Purchasing","LD Care Purchasing (Spot Placements)","R5430"
"Wolverhampton City Council","http://opendatacommunities.org/id/metropolitan-district-council/wolverhampton","703381","Eden Support Limited","110617-20170731","250.00","TPP - Day Care","190362087","02/08/2017","Learning Disabilities Care Purchasing","LD Care Purchasing (Spot Placements)","R5430"
"Wolverhampton City Council","http://opendatacommunities.org/id/metropolitan-district-council/wolverhampton","703381","Eden Support Limited","110617-20170731","137.20","TPP - Day Care","190362087","02/08/2017","Learning Disabilities Care Purchasing","LD Care Purchasing (Spot Placements)","R5430"
"Wolverhampton City Council","http://opendatacommunities.org/id/metropolitan-district-council/wolverhampton","703381","Eden Support Limited","110617-20170731","123.48","TPP - Day Care","190362087","02/08/2017","Learning Disabilities Care Purchasing","LD Care Purchasing (Spot Placements)","R5430"
"Wolverhampton City Council","http://opendatacommunities.org/id/metropolitan-district-council/wolverhampton","703381","Eden Support Limited","110617-20170731","150.00","TPP - Day Care","190362087","02/08/2017","Learning Disabilities Care Purchasing","LD Care Purchasing (Spot Placements)","R5430"
"Wolverhampton City Council","http://opendatacommunities.org/id/metropolitan-district-council/wolverhampton","703381","Eden Support Limited","110617-20170731","82.32","TPP - Day Care","190362087","02/08/2017","Learning Disabilities Care Purchasing","LD Care Purchasing (Spot Placements)","R5430"
"Wolverhampton City Council","http://opendatacommunities.org/id/metropolitan-district-council/wolverhampton","703381","Eden Support Limited","110617-20170731","200.00","TPP - Day Care","190362087","02/08/2017","Learning Disabilities Care Purchasing","LD Care Purchasing (Spot Placements)","R5430"
"Wolverhampton City Council","http://opendatacommunities.org/id/metropolitan-district-council/wolverhampton","703381","Eden Support Limited","110617-20170731","182.00","TPP - Day Care","190362087","02/08/2017","Learning Disabilities Care Purchasing","LD Care Purchasing (Spot Placements)","R5430"
"Wolverhampton City Council","http://opendatacommunities.org/id/metropolitan-district-council/wolverhampton","703381","Eden Support Limited","110617-20170731","25.00","TPP - Day Care","190362087","02/08/2017","Learning Disabilities Care Purchasing","LD Care Purchasing (Spot Placements)","R5430"
"Wolverhampton City Council","http://opendatacommunities.org/id/metropolitan-district-council/wolverhampton","703381","Eden Support Limited","110617-20170731","89.18","TPP - Day Care","190362087","02/08/2017","Learning Disabilities Care Purchasing","LD Care Purchasing (Spot Placements)","R5430"
"Wolverhampton City Council","http://opendatacommunities.org/id/metropolitan-district-council/wolverhampton","703381","Eden Support Limited","110617-20170731","100.00","TPP - Day Care","190362087","02/08/2017","Learning Disabilities Care Purchasing","LD Care Purchasing (Spot Placements)","R5430"
"Wolverhampton City Council","http://opendatacommunities.org/id/metropolitan-district-council/wolverhampton","703381","Eden Support Limited","110617-20170731","264.11","TPP - Day Care","190362087","02/08/2017","Learning Disabilities Care Purchasing","LD Care Purchasing (Spot Placements)","R5430"
"Wolverhampton City Council","http://opendatacommunities.org/id/metropolitan-district-council/wolverhampton","703381","Eden Support Limited","110617-20170731","264.11","TPP - Day Care","190362087","02/08/2017","Learning Disabilities Care Purchasing","LD Care Purchasing (Spot Placements)","R5430"
"Wolverhampton City Council","http://opendatacommunities.org/id/metropolitan-district-council/wolverhampton","703381","Eden Support Limited","110617-20170731","185.22","TPP - Day Care","190362087","02/08/2017","Learning Disabilities Care Purchasing","LD Care Purchasing (Spot Placements)","R5430"
"Wolverhampton City Council","http://opendatacommunities.org/id/metropolitan-district-council/wolverhampton","703381","Eden Support Limited","110617-20170731","182.00","TPP - Day Care","190362087","02/08/2017","Learning Disabilities Care Purchasing","LD Care Purchasing (Spot Placements)","R5430"
"Wolverhampton City Council","http://opendatacommunities.org/id/metropolitan-district-council/wolverhampton","703381","Eden Support Limited","110617-20170731","100.00","TPP - Day Care","190362087","02/08/2017","Learning Disabilities Care Purchasing","LD Care Purchasing (Spot Placements)","R5430"
"Wolverhampton City Council","http://opendatacommunities.org/id/metropolitan-district-council/wolverhampton","703381","Eden Support Limited","110617-20170731","240.10","TPP - Day Care","190362087","02/08/2017","Learning Disabilities Care Purchasing","LD Care Purchasing (Spot Placements)","R5430"
"Wolverhampton City Council","http://opendatacommunities.org/id/metropolitan-district-council/wolverhampton","703381","Eden Support Limited","110617-20170731","192.08","TPP - Day Care","190362087","02/08/2017","Learning Disabilities Care Purchasing","LD Care Purchasing (Spot Placements)","R5430"
"Wolverhampton City Council","http://opendatacommunities.org/id/metropolitan-district-council/wolverhampton","703381","Eden Support Limited","110617-20170731","100.00","TPP - Day Care","190362087","02/08/2017","Learning Disabilities Care Purchasing","LD Care Purchasing (Spot Placements)","R5430"
"Wolverhampton City Council","http://opendatacommunities.org/id/metropolitan-district-council/wolverhampton","703381","Eden Support Limited","110617-20170731","273.00","TPP - Day Care","190362087","02/08/2017","Learning Disabilities Care Purchasing","LD Care Purchasing (Spot Placements)","R5430"
"Wolverhampton City Council","http://opendatacommunities.org/id/metropolitan-district-council/wolverhampton","703381","Eden Support Limited","25061720170821","273.00","TPP - Day Care","190366717","23/08/2017","Learning Disabilities Care Purchasing","LD Care Purchasing (Spot Placements)","R5430"
"Wolverhampton City Council","http://opendatacommunities.org/id/metropolitan-district-council/wolverhampton","703381","Eden Support Limited","25061720170821","240.10","TPP - Day Care","190366717","23/08/2017","Learning Disabilities Care Purchasing","LD Care Purchasing (Spot Placements)","R5430"
"Wolverhampton City Council","http://opendatacommunities.org/id/metropolitan-district-council/wolverhampton","703381","Eden Support Limited","25061720170821","192.08","TPP - Day Care","190366717","23/08/2017","Learning Disabilities Care Purchasing","LD Care Purchasing (Spot Placements)","R5430"
"Wolverhampton City Council","http://opendatacommunities.org/id/metropolitan-district-council/wolverhampton","703381","Eden Support Limited","25061720170821","25.00","TPP - Day Care","190366717","23/08/2017","Learning Disabilities Care Purchasing","LD Care Purchasing (Spot Placements)","R5430"
"Wolverhampton City Council","http://opendatacommunities.org/id/metropolitan-district-council/wolverhampton","703381","Eden Support Limited","25061720170821","100.00","TPP - Day Care","190366717","23/08/2017","Learning Disabilities Care Purchasing","LD Care Purchasing (Spot Placements)","R5430"
"Wolverhampton City Council","http://opendatacommunities.org/id/metropolitan-district-council/wolverhampton","703381","Eden Support Limited","25061720170821","250.00","TPP - Day Care","190366717","23/08/2017","Learning Disabilities Care Purchasing","LD Care Purchasing (Spot Placements)","R5430"
"Wolverhampton City Council","http://opendatacommunities.org/id/metropolitan-district-council/wolverhampton","703381","Eden Support Limited","25061720170821","137.20","TPP - Day Care","190366717","23/08/2017","Learning Disabilities Care Purchasing","LD Care Purchasing (Spot Placements)","R5430"
"Wolverhampton City Council","http://opendatacommunities.org/id/metropolitan-district-council/wolverhampton","703381","Eden Support Limited","25061720170821","123.48","TPP - Day Care","190366717","23/08/2017","Learning Disabilities Care Purchasing","LD Care Purchasing (Spot Placements)","R5430"
"Wolverhampton City Council","http://opendatacommunities.org/id/metropolitan-district-council/wolverhampton","703381","Eden Support Limited","25061720170821","150.00","TPP - Day Care","190366717","23/08/2017","Learning Disabilities Care Purchasing","LD Care Purchasing (Spot Placements)","R5430"
"Wolverhampton City Council","http://opendatacommunities.org/id/metropolitan-district-council/wolverhampton","703381","Eden Support Limited","25061720170821","82.32","TPP - Day Care","190366717","23/08/2017","Learning Disabilities Care Purchasing","LD Care Purchasing (Spot Placements)","R5430"
"Wolverhampton City Council","http://opendatacommunities.org/id/metropolitan-district-council/wolverhampton","703381","Eden Support Limited","25061720170821","200.00","TPP - Day Care","190366717","23/08/2017","Learning Disabilities Care Purchasing","LD Care Purchasing (Spot Placements)","R5430"
"Wolverhampton City Council","http://opendatacommunities.org/id/metropolitan-district-council/wolverhampton","703381","Eden Support Limited","25061720170821","182.00","TPP - Day Care","190366717","23/08/2017","Learning Disabilities Care Purchasing","LD Care Purchasing (Spot Placements)","R5430"
"Wolverhampton City Council","http://opendatacommunities.org/id/metropolitan-district-council/wolverhampton","703381","Eden Support Limited","25061720170821","182.00","TPP - Day Care","190366717","23/08/2017","Learning Disabilities Care Purchasing","LD Care Purchasing (Spot Placements)","R5430"
"Wolverhampton City Council","http://opendatacommunities.org/id/metropolitan-district-council/wolverhampton","703381","Eden Support Limited","25061720170821","100.00","TPP - Day Care","190366717","23/08/2017","Learning Disabilities Care Purchasing","LD Care Purchasing (Spot Placements)","R5430"
"Wolverhampton City Council","http://opendatacommunities.org/id/metropolitan-district-council/wolverhampton","703381","Eden Support Limited","25061720170821","100.00","TPP - Day Care","190366717","23/08/2017","Learning Disabilities Care Purchasing","LD Care Purchasing (Spot Placements)","R5430"
"Wolverhampton City Council","http://opendatacommunities.org/id/metropolitan-district-council/wolverhampton","703381","Eden Support Limited","25061720170821","264.11","TPP - Day Care","190366717","23/08/2017","Learning Disabilities Care Purchasing","LD Care Purchasing (Spot Placements)","R5430"
"Wolverhampton City Council","http://opendatacommunities.org/id/metropolitan-district-council/wolverhampton","703381","Eden Support Limited","25061720170821","264.11","TPP - Day Care","190366717","23/08/2017","Learning Disabilities Care Purchasing","LD Care Purchasing (Spot Placements)","R5430"
"Wolverhampton City Council","http://opendatacommunities.org/id/metropolitan-district-council/wolverhampton","703381","Eden Support Limited","25061720170821","185.22","TPP - Day Care","190366717","23/08/2017","Learning Disabilities Care Purchasing","LD Care Purchasing (Spot Placements)","R5430"
"Wolverhampton City Council","http://opendatacommunities.org/id/metropolitan-district-council/wolverhampton","703381","Eden Support Limited","25061720170821","250.00","TPP - Day Care","190366717","23/08/2017","Learning Disabilities Care Purchasing","LD Care Purchasing (Spot Placements)","R5430"
"Wolverhampton City Council","http://opendatacommunities.org/id/metropolitan-district-council/wolverhampton","703381","Eden Support Limited","25061720170821","89.18","TPP - Day Care","190366717","23/08/2017","Learning Disabilities Care Purchasing","LD Care Purchasing (Spot Placements)","R5430"
"Wolverhampton City Council","http://opendatacommunities.org/id/metropolitan-district-council/wolverhampton","703381","Eden Support Limited","06081720170823","240.10","TPP - Day Care","190367499","25/08/2017","Learning Disabilities Care Purchasing","LD Care Purchasing (Spot Placements)","R5430"
"Wolverhampton City Council","http://opendatacommunities.org/id/metropolitan-district-council/wolverhampton","703381","Eden Support Limited","06081720170823","192.08","TPP - Day Care","190367499","25/08/2017","Learning Disabilities Care Purchasing","LD Care Purchasing (Spot Placements)","R5430"
"Wolverhampton City Council","http://opendatacommunities.org/id/metropolitan-district-council/wolverhampton","703381","Eden Support Limited","06081720170823","100.00","TPP - Day Care","190367499","25/08/2017","Learning Disabilities Care Purchasing","LD Care Purchasing (Spot Placements)","R5430"
"Wolverhampton City Council","http://opendatacommunities.org/id/metropolitan-district-council/wolverhampton","703381","Eden Support Limited","06081720170823","250.00","TPP - Day Care","190367499","25/08/2017","Learning Disabilities Care Purchasing","LD Care Purchasing (Spot Placements)","R5430"
"Wolverhampton City Council","http://opendatacommunities.org/id/metropolitan-district-council/wolverhampton","703381","Eden Support Limited","06081720170823","455.00","TPP - Day Care","190367499","25/08/2017","Learning Disabilities Care Purchasing","LD Care Purchasing (Spot Placements)","R5430"
"Wolverhampton City Council","http://opendatacommunities.org/id/metropolitan-district-council/wolverhampton","703381","Eden Support Limited","06081720170823","455.00","TPP - Day Care","190367499","25/08/2017","Learning Disabilities Care Purchasing","LD Care Purchasing (Spot Placements)","R5430"
"Wolverhampton City Council","http://opendatacommunities.org/id/metropolitan-district-council/wolverhampton","703381","Eden Support Limited","06081720170823","50.00","TPP - Day Care","190367499","25/08/2017","Learning Disabilities Care Purchasing","LD Care Purchasing (Spot Placements)","R5430"
"Wolverhampton City Council","http://opendatacommunities.org/id/metropolitan-district-council/wolverhampton","703381","Eden Support Limited","06081720170823","82.32","TPP - Day Care","190367499","25/08/2017","Learning Disabilities Care Purchasing","LD Care Purchasing (Spot Placements)","R5430"
"Wolverhampton City Council","http://opendatacommunities.org/id/metropolitan-district-council/wolverhampton","703381","Eden Support Limited","06081720170823","250.00","TPP - Day Care","190367499","25/08/2017","Learning Disabilities Care Purchasing","LD Care Purchasing (Spot Placements)","R5430"
"Wolverhampton City Council","http://opendatacommunities.org/id/metropolitan-district-council/wolverhampton","703381","Eden Support Limited","06081720170823","96.04","TPP - Day Care","190367499","25/08/2017","Learning Disabilities Care Purchasing","LD Care Purchasing (Spot Placements)","R5430"
"Wolverhampton City Council","http://opendatacommunities.org/id/metropolitan-district-council/wolverhampton","703381","Eden Support Limited","06081720170823","25.00","TPP - Day Care","190367499","25/08/2017","Learning Disabilities Care Purchasing","LD Care Purchasing (Spot Placements)","R5430"
"Wolverhampton City Council","http://opendatacommunities.org/id/metropolitan-district-council/wolverhampton","703381","Eden Support Limited","06081720170823","250.00","TPP - Day Care","190367499","25/08/2017","Learning Disabilities Care Purchasing","LD Care Purchasing (Spot Placements)","R5430"
"Wolverhampton City Council","http://opendatacommunities.org/id/metropolitan-district-council/wolverhampton","703381","Eden Support Limited","06081720170823","137.20","TPP - Day Care","190367499","25/08/2017","Learning Disabilities Care Purchasing","LD Care Purchasing (Spot Placements)","R5430"
"Wolverhampton City Council","http://opendatacommunities.org/id/metropolitan-district-council/wolverhampton","703381","Eden Support Limited","06081720170823","123.48","TPP - Day Care","190367499","25/08/2017","Learning Disabilities Care Purchasing","LD Care Purchasing (Spot Placements)","R5430"
"Wolverhampton City Council","http://opendatacommunities.org/id/metropolitan-district-council/wolverhampton","703381","Eden Support Limited","06081720170823","150.00","TPP - Day Care","190367499","25/08/2017","Learning Disabilities Care Purchasing","LD Care Purchasing (Spot Placements)","R5430"
"Wolverhampton City Council","http://opendatacommunities.org/id/metropolitan-district-council/wolverhampton","703381","Eden Support Limited","06081720170823","100.00","TPP - Day Care","190367499","25/08/2017","Learning Disabilities Care Purchasing","LD Care Purchasing (Spot Placements)","R5430"
"Wolverhampton City Council","http://opendatacommunities.org/id/metropolitan-district-council/wolverhampton","703381","Eden Support Limited","06081720170823","264.11","TPP - Day Care","190367499","25/08/2017","Learning Disabilities Care Purchasing","LD Care Purchasing (Spot Placements)","R5430"
"Wolverhampton City Council","http://opendatacommunities.org/id/metropolitan-district-council/wolverhampton","703381","Eden Support Limited","06081720170823","264.11","TPP - Day Care","190367499","25/08/2017","Learning Disabilities Care Purchasing","LD Care Purchasing (Spot Placements)","R5430"
"Wolverhampton City Council","http://opendatacommunities.org/id/metropolitan-district-council/wolverhampton","703381","Eden Support Limited","06081720170823","185.22","TPP - Day Care","190367499","25/08/2017","Learning Disabilities Care Purchasing","LD Care Purchasing (Spot Placements)","R5430"
"Wolverhampton City Council","http://opendatacommunities.org/id/metropolitan-district-council/wolverhampton","703381","Eden Support Limited","06081720170823","273.00","TPP - Day Care","190367499","25/08/2017","Learning Disabilities Care Purchasing","LD Care Purchasing (Spot Placements)","R5430"
"Wolverhampton City Council","http://opendatacommunities.org/id/metropolitan-district-council/wolverhampton","703381","Eden Support Limited","13081720170823","25.00","TPP - Day Care","190367500","25/08/2017","Learning Disabilities Care Purchasing","LD Care Purchasing (Spot Placements)","R5430"
"Wolverhampton City Council","http://opendatacommunities.org/id/metropolitan-district-council/wolverhampton","703381","Eden Support Limited","13081720170823","250.00","TPP - Day Care","190367500","25/08/2017","Learning Disabilities Care Purchasing","LD Care Purchasing (Spot Placements)","R5430"
"Wolverhampton City Council","http://opendatacommunities.org/id/metropolitan-district-council/wolverhampton","703381","Eden Support Limited","13081720170823","273.00","TPP - Day Care","190367500","25/08/2017","Learning Disabilities Care Purchasing","LD Care Purchasing (Spot Placements)","R5430"
"Wolverhampton City Council","http://opendatacommunities.org/id/metropolitan-district-council/wolverhampton","703381","Eden Support Limited","13081720170823","240.10","TPP - Day Care","190367500","25/08/2017","Learning Disabilities Care Purchasing","LD Care Purchasing (Spot Placements)","R5430"
"Wolverhampton City Council","http://opendatacommunities.org/id/metropolitan-district-council/wolverhampton","703381","Eden Support Limited","13081720170823","137.20","TPP - Day Care","190367500","25/08/2017","Learning Disabilities Care Purchasing","LD Care Purchasing (Spot Placements)","R5430"
"Wolverhampton City Council","http://opendatacommunities.org/id/metropolitan-district-council/wolverhampton","703381","Eden Support Limited","13081720170823","185.22","TPP - Day Care","190367500","25/08/2017","Learning Disabilities Care Purchasing","LD Care Purchasing (Spot Placements)","R5430"
"Wolverhampton City Council","http://opendatacommunities.org/id/metropolitan-district-council/wolverhampton","703381","Eden Support Limited","13081720170823","250.00","TPP - Day Care","190367500","25/08/2017","Learning Disabilities Care Purchasing","LD Care Purchasing (Spot Placements)","R5430"
"Wolverhampton City Council","http://opendatacommunities.org/id/metropolitan-district-council/wolverhampton","703381","Eden Support Limited","13081720170823","455.00","TPP - Day Care","190367500","25/08/2017","Learning Disabilities Care Purchasing","LD Care Purchasing (Spot Placements)","R5430"
"Wolverhampton City Council","http://opendatacommunities.org/id/metropolitan-district-council/wolverhampton","703381","Eden Support Limited","13081720170823","455.00","TPP - Day Care","190367500","25/08/2017","Learning Disabilities Care Purchasing","LD Care Purchasing (Spot Placements)","R5430"
"Wolverhampton City Council","http://opendatacommunities.org/id/metropolitan-district-council/wolverhampton","703381","Eden Support Limited","13081720170823","50.00","TPP - Day Care","190367500","25/08/2017","Learning Disabilities Care Purchasing","LD Care Purchasing (Spot Placements)","R5430"
"Wolverhampton City Council","http://opendatacommunities.org/id/metropolitan-district-council/wolverhampton","703381","Eden Support Limited","13081720170823","96.04","TPP - Day Care","190367500","25/08/2017","Learning Disabilities Care Purchasing","LD Care Purchasing (Spot Placements)","R5430"
"Wolverhampton City Council","http://opendatacommunities.org/id/metropolitan-district-council/wolverhampton","703381","Eden Support Limited","13081720170823","82.32","TPP - Day Care","190367500","25/08/2017","Learning Disabilities Care Purchasing","LD Care Purchasing (Spot Placements)","R5430"
"Wolverhampton City Council","http://opendatacommunities.org/id/metropolitan-district-council/wolverhampton","703381","Eden Support Limited","13081720170823","100.00","TPP - Day Care","190367500","25/08/2017","Learning Disabilities Care Purchasing","LD Care Purchasing (Spot Placements)","R5430"
"Wolverhampton City Council","http://opendatacommunities.org/id/metropolitan-district-council/wolverhampton","703381","Eden Support Limited","13081720170823","264.11","TPP - Day Care","190367500","25/08/2017","Learning Disabilities Care Purchasing","LD Care Purchasing (Spot Placements)","R5430"
"Wolverhampton City Council","http://opendatacommunities.org/id/metropolitan-district-council/wolverhampton","703381","Eden Support Limited","13081720170823","264.11","TPP - Day Care","190367500","25/08/2017","Learning Disabilities Care Purchasing","LD Care Purchasing (Spot Placements)","R5430"
"Wolverhampton City Council","http://opendatacommunities.org/id/metropolitan-district-council/wolverhampton","703381","Eden Support Limited","13081720170823","192.08","TPP - Day Care","190367500","25/08/2017","Learning Disabilities Care Purchasing","LD Care Purchasing (Spot Placements)","R5430"
"Wolverhampton City Council","http://opendatacommunities.org/id/metropolitan-district-council/wolverhampton","703381","Eden Support Limited","13081720170823","100.00","TPP - Day Care","190367500","25/08/2017","Learning Disabilities Care Purchasing","LD Care Purchasing (Spot Placements)","R5430"
"Wolverhampton City Council","http://opendatacommunities.org/id/metropolitan-district-council/wolverhampton","703381","Eden Support Limited","13081720170823","250.00","TPP - Day Care","190367500","25/08/2017","Learning Disabilities Care Purchasing","LD Care Purchasing (Spot Placements)","R5430"
"Wolverhampton City Council","http://opendatacommunities.org/id/metropolitan-district-council/wolverhampton","703381","Eden Support Limited","13081720170823","123.48","TPP - Day Care","190367500","25/08/2017","Learning Disabilities Care Purchasing","LD Care Purchasing (Spot Placements)","R5430"
"Wolverhampton City Council","http://opendatacommunities.org/id/metropolitan-district-council/wolverhampton","703381","Eden Support Limited","13081720170823","150.00","TPP - Day Care","190367500","25/08/2017","Learning Disabilities Care Purchasing","LD Care Purchasing (Spot Placements)","R5430"
"Wolverhampton City Council","http://opendatacommunities.org/id/metropolitan-district-council/wolverhampton","703383","Edexcel  (Was Edexcel Limited)","ILA466_VOC","111.20","Exam Expenses (Non-Employee)","130183831","23/08/2017","Adult Education","Foundation Studies Delivery Area","R4630"
"Wolverhampton City Council","http://opendatacommunities.org/id/metropolitan-district-council/wolverhampton","703383","Edexcel  (Was Edexcel Limited)","097691 - Z1707","-69.50","Exam Expenses (Non-Employee)","130183430","23/08/2017","Adult Education","Foundation Studies Delivery Area","R4630"
"Wolverhampton City Council","http://opendatacommunities.org/id/metropolitan-district-council/wolverhampton","703383","Edexcel  (Was Edexcel Limited)","097282 - Z1707","111.20","Exam Expenses (Non-Employee)","130180860","09/08/2017","Adult Education","Foundation Studies Delivery Area","R4630"
"Wolverhampton City Council","http://opendatacommunities.org/id/metropolitan-district-council/wolverhampton","703383","Edexcel  (Was Edexcel Limited)","ILD491_VOC","13.70","Exam Expenses (Non-Employee)","130183832","23/08/2017","Adult Education","Foundation Studies Delivery Area","R4630"
"Wolverhampton City Council","http://opendatacommunities.org/id/metropolitan-district-council/wolverhampton","703383","Edexcel  (Was Edexcel Limited)","ILD491_VOC","-13.70","Exam Expenses (Non-Employee)","130183832","23/08/2017","Adult Education","Foundation Studies Delivery Area","R4630"
"Wolverhampton City Council","http://opendatacommunities.org/id/metropolitan-district-council/wolverhampton","703383","Edexcel  (Was Edexcel Limited)","ILD491_VOC","13.70","Exam Expenses (Non-Employee)","130183832","23/08/2017","Adult Education","Foundation Studies Delivery Area","R4630"
"Wolverhampton City Council","http://opendatacommunities.org/id/metropolitan-district-council/wolverhampton","703383","Edexcel  (Was Edexcel Limited)","097312 - Z1707","-111.20","Exam Expenses (Non-Employee)","130180861","09/08/2017","Adult Education","Foundation Studies Delivery Area","R4630"
"Wolverhampton City Council","http://opendatacommunities.org/id/metropolitan-district-council/wolverhampton","703383","Edexcel  (Was Edexcel Limited)","097926 - Z1707","41.70","Exam Expenses (Non-Employee)","130183830","23/08/2017","Adult Education","Foundation Studies Delivery Area","R4630"
"Wolverhampton City Council","http://opendatacommunities.org/id/metropolitan-district-council/wolverhampton","703383","Edexcel  (Was Edexcel Limited)","IKM856_VOC","39.00","Exam Expenses (Non-Employee)","130183433","09/08/2017","Adult Education","Foundation Studies Delivery Area","R4630"
"Wolverhampton City Council","http://opendatacommunities.org/id/metropolitan-district-council/wolverhampton","703383","Edexcel  (Was Edexcel Limited)","097846 - Z1707","27.80","Exam Expenses (Non-Employee)","130183431","23/08/2017","Adult Education","Foundation Studies Delivery Area","R4630"
"Wolverhampton City Council","http://opendatacommunities.org/id/metropolitan-district-council/wolverhampton","703383","Edexcel  (Was Edexcel Limited)","097601 - Z1707","1,285.75","Exam Expenses (Non-Employee)","130183829","23/08/2017","Adult Education","Foundation Studies Delivery Area","R4630"
"Wolverhampton City Council","http://opendatacommunities.org/id/metropolitan-district-council/wolverhampton","703383","Edexcel  (Was Edexcel Limited)","097868 - Z1707","-6.95","Exam Expenses (Non-Employee)","130183432","09/08/2017","Adult Education","Foundation Studies Delivery Area","R4630"
"Wolverhampton City Council","http://opendatacommunities.org/id/metropolitan-district-council/wolverhampton","703395","Edmundson Electrical Limited","230-303653","12.72","Equipment - Purchase","190365866","18/08/2017","Fleet Services","Fleet Management","R4000"
"Wolverhampton City Council","http://opendatacommunities.org/id/metropolitan-district-council/wolverhampton","703395","Edmundson Electrical Limited","019 - 685241","14.64","Equipment - Purchase","130183434","09/08/2017","Maintenance Programme","Civic Centre Repairs & Maintenance","R4000"
"Wolverhampton City Council","http://opendatacommunities.org/id/metropolitan-district-council/wolverhampton","703395","Edmundson Electrical Limited","230 - 303343","39.48","Cleaning Supplies and Materials","130184317","16/08/2017","Strategic Organisation Development","Global Budgets","R2705"
"Wolverhampton City Council","http://opendatacommunities.org/id/metropolitan-district-council/wolverhampton","703444","Veriserv Limited","100225","471.41","R&M - Departmental planned (external)","130182692","09/08/2017","Maintenance Programme","Centralised R&M","R2001"
"Wolverhampton City Council","http://opendatacommunities.org/id/metropolitan-district-council/wolverhampton","703444","Veriserv Limited","100226","154.58","R&M - Departmental planned (external)","130183833","23/08/2017","Maintenance Programme","Centralised R&M","R2001"
"Wolverhampton City Council","http://opendatacommunities.org/id/metropolitan-district-council/wolverhampton","703444","Veriserv Limited","100087","71.39","R&M - Departmental planned (external)","130182690","02/08/2017","Maintenance Programme","Centralised R&M","R2001"
"Wolverhampton City Council","http://opendatacommunities.org/id/metropolitan-district-council/wolverhampton","703444","Veriserv Limited","100402","165.79","R&M - Departmental planned (external)","130183562","23/08/2017","Maintenance Programme","Centralised R&M","R2001"
"Wolverhampton City Council","http://opendatacommunities.org/id/metropolitan-district-council/wolverhampton","703444","Veriserv Limited","100404","24.50","R&M - Departmental planned (external)","130183564","16/08/2017","Maintenance Programme","Centralised R&M","R2001"
"Wolverhampton City Council","http://opendatacommunities.org/id/metropolitan-district-council/wolverhampton","703444","Veriserv Limited","100088","50.74","R&M - Departmental planned (external)","130182691","02/08/2017","Maintenance Programme","Centralised R&M","R2001"
"Wolverhampton City Council","http://opendatacommunities.org/id/metropolitan-district-council/wolverhampton","703444","Veriserv Limited","100401","388.22","R&M - Departmental planned (external)","130183561","23/08/2017","Maintenance Programme","Centralised R&M","R2001"
"Wolverhampton City Council","http://opendatacommunities.org/id/metropolitan-district-council/wolverhampton","703444","Veriserv Limited","100086","117.41","R&M - Departmental planned (external)","130182689","02/08/2017","Maintenance Programme","Centralised R&M","R2001"
"Wolverhampton City Council","http://opendatacommunities.org/id/metropolitan-district-council/wolverhampton","703444","Veriserv Limited","100403","105.02","R&M - Departmental planned (external)","130183563","23/08/2017","Maintenance Programme","Centralised R&M","R2001"
"Wolverhampton City Council","http://opendatacommunities.org/id/metropolitan-district-council/wolverhampton","703444","Veriserv Limited","100085","54.28","R&M - Departmental planned (external)","130182688","02/08/2017","Maintenance Programme","Centralised R&M","R2001"
"Wolverhampton City Council","http://opendatacommunities.org/id/metropolitan-district-council/wolverhampton","703444","Veriserv Limited","100661","196.47","R&M - Departmental planned (external)","130186008","30/08/2017","Maintenance Programme","Centralised R&M","R2001"
"Wolverhampton City Council","http://opendatacommunities.org/id/metropolitan-district-council/wolverhampton","703469","E-Manage Limited","002369","5,000.00","Computing - Maint Agreements","130184319","25/08/2017","ICTS","Strategic ICTS (ICT Service Budget)","R4534"
"Wolverhampton City Council","http://opendatacommunities.org/id/metropolitan-district-council/wolverhampton","703504","Enterprise Managed Services Limited","0090601228","495.00","TPP - Waste Disposal","130184605","23/08/2017","Facilities Management","Civic Centre","R5003"
"Wolverhampton City Council","http://opendatacommunities.org/id/metropolitan-district-council/wolverhampton","703504","Enterprise Managed Services Limited","0090617855","1,757.25","TPP - Waste Disposal","130180862","09/08/2017","Markets","Bilston Market and Licensed Operations","R5003"
"Wolverhampton City Council","http://opendatacommunities.org/id/metropolitan-district-council/wolverhampton","703504","Enterprise Managed Services Limited","0090617859","1,377.35","TPP - Waste Disposal","130180864","09/08/2017","Facilities Management","Civic Centre","R5003"
"Wolverhampton City Council","http://opendatacommunities.org/id/metropolitan-district-council/wolverhampton","703504","Enterprise Managed Services Limited","90621391","12,917.68","TPP - Waste Disposal","130181760","16/08/2017","Waste and Recycling Service","Waste Disposal - General","R5003"
"Wolverhampton City Council","http://opendatacommunities.org/id/metropolitan-district-council/wolverhampton","703504","Enterprise Managed Services Limited","0090601230","1,677.71","TPP - Waste Disposal","130184607","16/08/2017","Markets","Wolverhampton Indoor and Open Market","R5003"
"Wolverhampton City Council","http://opendatacommunities.org/id/metropolitan-district-council/wolverhampton","703504","Enterprise Managed Services Limited","90600867","11,625.20","TPP - Waste Disposal","130170464","11/08/2017","Waste and Recycling Service","Waste Disposal - General","R5003"
"Wolverhampton City Council","http://opendatacommunities.org/id/metropolitan-district-council/wolverhampton","703504","Enterprise Managed Services Limited","90595226","2,253.78","TPP - Waste Disposal","130185834","30/08/2017","Markets","Wolverhampton Indoor and Open Market","R5003"
"Wolverhampton City Council","http://opendatacommunities.org/id/metropolitan-district-council/wolverhampton","703504","Enterprise Managed Services Limited","90601230","1,677.71","TPP - Waste Disposal","130185835","30/08/2017","Markets","Wolverhampton Indoor and Open Market","R5003"
"Wolverhampton City Council","http://opendatacommunities.org/id/metropolitan-district-council/wolverhampton","703504","Enterprise Managed Services Limited","90623566","3,688.83","TPP - Waste Disposal","130183237","30/08/2017","Waste and Recycling Service","Waste Collection and Recycling Service - General","R5003"
"Wolverhampton City Council","http://opendatacommunities.org/id/metropolitan-district-council/wolverhampton","703504","Enterprise Managed Services Limited","0090601736","354.32","Waste Management","130181376","02/08/2017","Standards and Vulnerable Pupils","Music Support Team","R2703"
"Wolverhampton City Council","http://opendatacommunities.org/id/metropolitan-district-council/wolverhampton","703504","Enterprise Managed Services Limited","0090623973","7,375.76","TPP - Waste Disposal","130183566","30/08/2017","Markets","Wholesale Market Facilities Management","R5003"
"Wolverhampton City Council","http://opendatacommunities.org/id/metropolitan-district-council/wolverhampton","703504","Enterprise Managed Services Limited","0090623977","2,148.20","TPP - Waste Disposal","130183569","30/08/2017","Markets","Wolverhampton Indoor and Open Market","R5003"
"Wolverhampton City Council","http://opendatacommunities.org/id/metropolitan-district-council/wolverhampton","703504","Enterprise Managed Services Limited","0090623976","292.00","TPP - Waste Disposal","130183568","30/08/2017","Facilities Management","Civic Centre","R5003"
"Wolverhampton City Council","http://opendatacommunities.org/id/metropolitan-district-council/wolverhampton","703504","Enterprise Managed Services Limited","0090595219","1,344.62","TPP - Waste Disposal","130168124","09/08/2017","Markets","Bilston Market and Licensed Operations","R5003"
"Wolverhampton City Council","http://opendatacommunities.org/id/metropolitan-district-council/wolverhampton","703504","Enterprise Managed Services Limited","0090617860","292.00","TPP - Waste Disposal","130180865","09/08/2017","Facilities Management","Civic Centre","R5003"
"Wolverhampton City Council","http://opendatacommunities.org/id/metropolitan-district-council/wolverhampton","703504","Enterprise Managed Services Limited","90622416","692.18","TPP - Waste Disposal","130182374","23/08/2017","Older People Provider Services","Bradley Lodge Resource Centre","R5003"
"Wolverhampton City Council","http://opendatacommunities.org/id/metropolitan-district-council/wolverhampton","703504","Enterprise Managed Services Limited","90622434","228.55","TPP - Waste Disposal","130182376","23/08/2017","Bereavement Services","Coroners","R5003"
"Wolverhampton City Council","http://opendatacommunities.org/id/metropolitan-district-council/wolverhampton","703504","Enterprise Managed Services Limited","0090601227","783.61","TPP - Waste Disposal","130184604","16/08/2017","Facilities Management","Civic Centre","R5003"
"Wolverhampton City Council","http://opendatacommunities.org/id/metropolitan-district-council/wolverhampton","703504","Enterprise Managed Services Limited","0090582859","1,740.53","TPP - Waste Disposal","130184601","16/08/2017","Markets","Wolverhampton Indoor and Open Market","R5003"
"Wolverhampton City Council","http://opendatacommunities.org/id/metropolitan-district-council/wolverhampton","703504","Enterprise Managed Services Limited","0090618486","341.64","Refuse Collection","130181505","11/08/2017","Visitor Economy","Art Gallery","R2704"
"Wolverhampton City Council","http://opendatacommunities.org/id/metropolitan-district-council/wolverhampton","703504","Enterprise Managed Services Limited","0090623565","427.95","TPP - Waste Disposal","130183061","30/08/2017","Markets","Wednesfield Street Market","R5003"
"Wolverhampton City Council","http://opendatacommunities.org/id/metropolitan-district-council/wolverhampton","703504","Enterprise Managed Services Limited","0090623971","1,466.26","TPP - Waste Disposal","130183565","30/08/2017","Markets","Bilston Market and Licensed Operations","R5003"
"Wolverhampton City Council","http://opendatacommunities.org/id/metropolitan-district-council/wolverhampton","703504","Enterprise Managed Services Limited","90582859","1,740.53","TPP - Waste Disposal","130185833","30/08/2017","Markets","Wolverhampton Indoor and Open Market","R5003"
"Wolverhampton City Council","http://opendatacommunities.org/id/metropolitan-district-council/wolverhampton","703504","Enterprise Managed Services Limited","0090601223","1,337.13","TPP - Waste Disposal","130184603","16/08/2017","Markets","Bilston Market and Licensed Operations","R5003"
"Wolverhampton City Council","http://opendatacommunities.org/id/metropolitan-district-council/wolverhampton","703504","Enterprise Managed Services Limited","90622427","509.34","TPP - Waste Disposal","130182375","23/08/2017","Learning Disability Provider","Ernest Bold Court","R5003"
"Wolverhampton City Council","http://opendatacommunities.org/id/metropolitan-district-council/wolverhampton","703504","Enterprise Managed Services Limited","0090617861","2,268.82","TPP - Waste Disposal","130180866","09/08/2017","Markets","Wolverhampton Indoor and Open Market","R5003"
"Wolverhampton City Council","http://opendatacommunities.org/id/metropolitan-district-council/wolverhampton","703504","Enterprise Managed Services Limited","0090618182","344.72","TPP - Waste Disposal","130180867","09/08/2017","Facilities Management","Parkfields Office Accomodation","R5003"
"Wolverhampton City Council","http://opendatacommunities.org/id/metropolitan-district-council/wolverhampton","703504","Enterprise Managed Services Limited","0090623975","1,310.08","TPP - Waste Disposal","130183567","30/08/2017","Facilities Management","Civic Centre","R5003"
"Wolverhampton City Council","http://opendatacommunities.org/id/metropolitan-district-council/wolverhampton","703504","Enterprise Managed Services Limited","0090623564","1,179.24","TPP - Waste Disposal","130183060","30/08/2017","Markets","Bilston Market and Licensed Operations","R5003"
"Wolverhampton City Council","http://opendatacommunities.org/id/metropolitan-district-council/wolverhampton","703504","Enterprise Managed Services Limited","90623965","691,665.00","TPP - Waste Disposal","130183435","30/08/2017","Waste and Recycling Service","Waste Collection and Recycling Service - General","R5003"
"Wolverhampton City Council","http://opendatacommunities.org/id/metropolitan-district-council/wolverhampton","703504","Enterprise Managed Services Limited","0090622469","2,450.00","Services - Professional Fees","130182372","23/08/2017","Public Protection","Regulatory Services - Works in Default","R4400"
"Wolverhampton City Council","http://opendatacommunities.org/id/metropolitan-district-council/wolverhampton","703504","Enterprise Managed Services Limited","0090617857","7,705.12","TPP - Waste Disposal","130180863","09/08/2017","Markets","Wholesale Market Facilities Management","R5003"
"Wolverhampton City Council","http://opendatacommunities.org/id/metropolitan-district-council/wolverhampton","703504","Enterprise Managed Services Limited","90622413","130.60","TPP - Waste Disposal","130182373","23/08/2017","Older People Provider Services","Blakenhall Resource Centre","R5003"
"Wolverhampton City Council","http://opendatacommunities.org/id/metropolitan-district-council/wolverhampton","703504","Enterprise Managed Services Limited","0090601229","219.00","TPP - Waste Disposal","130184606","16/08/2017","Facilities Management","Civic Centre","R5003"
"Wolverhampton City Council","http://opendatacommunities.org/id/metropolitan-district-council/wolverhampton","703504","Enterprise Managed Services Limited","0090595226","2,253.78","TPP - Waste Disposal","130184602","16/08/2017","Markets","Wolverhampton Indoor and Open Market","R5003"
"Wolverhampton City Council","http://opendatacommunities.org/id/metropolitan-district-council/wolverhampton","703508","Entrust Social Care Limited","PC1718","1,406.00","Agency Staff","130182535","09/08/2017","Safeguarding","Head of Service Quality and Safeguarding","R1100"
"Wolverhampton City Council","http://opendatacommunities.org/id/metropolitan-district-council/wolverhampton","703508","Entrust Social Care Limited","PC1618","1,406.00","Agency Staff","130181761","02/08/2017","Safeguarding","Head of Service Quality and Safeguarding","R1100"
"Wolverhampton City Council","http://opendatacommunities.org/id/metropolitan-district-council/wolverhampton","703508","Entrust Social Care Limited","TW19","1,267.25","Agency Staff","130184862","23/08/2017","Child Protection","CIN/CP Social Work Unit - Area 7","R1100"
"Wolverhampton City Council","http://opendatacommunities.org/id/metropolitan-district-council/wolverhampton","703508","Entrust Social Care Limited","TW1618","1,230.25","Agency Staff","130181762","02/08/2017","Child Protection","CIN/CP Social Work Unit - Area 7","R1100"
"Wolverhampton City Council","http://opendatacommunities.org/id/metropolitan-district-council/wolverhampton","703508","Entrust Social Care Limited","TW1718","425.50","Agency Staff","130181763","02/08/2017","Child Protection","CIN/CP Social Work Unit - Area 7","R1100"
"Wolverhampton City Council","http://opendatacommunities.org/id/metropolitan-district-council/wolverhampton","703508","Entrust Social Care Limited","TW18","1,408.15","Agency Staff","130183571","16/08/2017","Child Protection","CIN/CP Social Work Unit - Area 7","R1100"
"Wolverhampton City Council","http://opendatacommunities.org/id/metropolitan-district-council/wolverhampton","703511","Enviro Technology Services PLC","23618","1,603.03","Equipment - Purchase","130181178","09/08/2017","Public Protection","Air Quality and Noise","R4000"
"Wolverhampton City Council","http://opendatacommunities.org/id/metropolitan-district-council/wolverhampton","703560","Euro Food Brands Limited","IN00685108","333.71","Provisions (Resale)","130183063","25/08/2017","Visitor Economy","Bantock - Tea Rooms","R4102"
"Wolverhampton City Council","http://opendatacommunities.org/id/metropolitan-district-council/wolverhampton","703560","Euro Food Brands Limited","IN00685108","-333.71","Provisions (Resale)","130183063","25/08/2017","Visitor Economy","Bantock - Tea Rooms","R4102"
"Wolverhampton City Council","http://opendatacommunities.org/id/metropolitan-district-council/wolverhampton","703560","Euro Food Brands Limited","IN00685108","333.71","Provisions (Resale)","130183063","25/08/2017","Visitor Economy","Bantock - Tea Rooms","R4102"
"Wolverhampton City Council","http://opendatacommunities.org/id/metropolitan-district-council/wolverhampton","703560","Euro Food Brands Limited","IN00682278","231.04","Provisions (Resale)","130182229","25/08/2017","Visitor Economy","Bantock - Tea Rooms","R4102"
"Wolverhampton City Council","http://opendatacommunities.org/id/metropolitan-district-council/wolverhampton","703560","Euro Food Brands Limited","IN00682278","-231.04","Provisions (Resale)","130182229","25/08/2017","Visitor Economy","Bantock - Tea Rooms","R4102"
"Wolverhampton City Council","http://opendatacommunities.org/id/metropolitan-district-council/wolverhampton","703560","Euro Food Brands Limited","IN00682278","231.04","Provisions (Resale)","130182229","25/08/2017","Visitor Economy","Bantock - Tea Rooms","R4102"
"Wolverhampton City Council","http://opendatacommunities.org/id/metropolitan-district-council/wolverhampton","703560","Euro Food Brands Limited","IN00680929","399.08","Provisions (Resale)","130181016","25/08/2017","Visitor Economy","Bantock - Tea Rooms","R4102"
"Wolverhampton City Council","http://opendatacommunities.org/id/metropolitan-district-council/wolverhampton","703560","Euro Food Brands Limited","IN00680929","-399.08","Provisions (Resale)","130181016","25/08/2017","Visitor Economy","Bantock - Tea Rooms","R4102"
"Wolverhampton City Council","http://opendatacommunities.org/id/metropolitan-district-council/wolverhampton","703560","Euro Food Brands Limited","IN00680929","399.08","Provisions (Resale)","130181016","25/08/2017","Visitor Economy","Bantock - Tea Rooms","R4102"
"Wolverhampton City Council","http://opendatacommunities.org/id/metropolitan-district-council/wolverhampton","703560","Euro Food Brands Limited","IN00685107","194.04","Provisions (Resale)","130183062","25/08/2017","Visitor Economy","Art Gallery Tea Room","R4102"
"Wolverhampton City Council","http://opendatacommunities.org/id/metropolitan-district-council/wolverhampton","703560","Euro Food Brands Limited","IN00685107","-194.04","Provisions (Resale)","130183062","25/08/2017","Visitor Economy","Art Gallery Tea Room","R4102"
"Wolverhampton City Council","http://opendatacommunities.org/id/metropolitan-district-council/wolverhampton","703560","Euro Food Brands Limited","IN00685107","194.04","Provisions (Resale)","130183062","25/08/2017","Visitor Economy","Art Gallery Tea Room","R4102"
"Wolverhampton City Council","http://opendatacommunities.org/id/metropolitan-district-council/wolverhampton","703560","Euro Food Brands Limited","IN00682106","250.85","Provisions (Resale)","130181764","25/08/2017","Visitor Economy","Art Gallery Tea Room","R4102"
"Wolverhampton City Council","http://opendatacommunities.org/id/metropolitan-district-council/wolverhampton","703560","Euro Food Brands Limited","IN00682106","-250.85","Provisions (Resale)","130181764","25/08/2017","Visitor Economy","Art Gallery Tea Room","R4102"
"Wolverhampton City Council","http://opendatacommunities.org/id/metropolitan-district-council/wolverhampton","703560","Euro Food Brands Limited","IN00682106","250.85","Provisions (Resale)","130181764","25/08/2017","Visitor Economy","Art Gallery Tea Room","R4102"
"Wolverhampton City Council","http://opendatacommunities.org/id/metropolitan-district-council/wolverhampton","703560","Euro Food Brands Limited","IN00682107","11.45","Provisions (Resale)","130181765","16/08/2017","Visitor Economy","Art Gallery Tea Room","R4102"
"Wolverhampton City Council","http://opendatacommunities.org/id/metropolitan-district-council/wolverhampton","703560","Euro Food Brands Limited","IN00678076","194.04","Provisions (Resale)","130179565","02/08/2017","Visitor Economy","Art Gallery Tea Room","R4102"
"Wolverhampton City Council","http://opendatacommunities.org/id/metropolitan-district-council/wolverhampton","703560","Euro Food Brands Limited","IN00678076","-194.04","Provisions (Resale)","130179565","02/08/2017","Visitor Economy","Art Gallery Tea Room","R4102"
"Wolverhampton City Council","http://opendatacommunities.org/id/metropolitan-district-council/wolverhampton","703560","Euro Food Brands Limited","IN00678076","194.04","Provisions (Resale)","130179565","02/08/2017","Visitor Economy","Art Gallery Tea Room","R4102"
"Wolverhampton City Council","http://opendatacommunities.org/id/metropolitan-district-council/wolverhampton","703566","Eurofins Food Testing UK Limited","IN - 17 - UD - 172588","138.64","Materials","130185007","23/08/2017","Environmental Maintenance","Parks - Ranger Service","R4007"
"Wolverhampton City Council","http://opendatacommunities.org/id/metropolitan-district-council/wolverhampton","703576","Evans Halshaw Ford","901027","55.49","Equipment - Purchase","190367163","23/08/2017","Fleet Services","Fleet Management","R4000"
"Wolverhampton City Council","http://opendatacommunities.org/id/metropolitan-district-council/wolverhampton","703576","Evans Halshaw Ford","900905","54.93","Equipment - Purchase","190365880","18/08/2017","Fleet Services","Fleet Management","R4000"
"Wolverhampton City Council","http://opendatacommunities.org/id/metropolitan-district-council/wolverhampton","703576","Evans Halshaw Ford","899837","-128.16","Equipment - Purchase","190365106","16/08/2017","Fleet Services","Fleet Management","R4000"
"Wolverhampton City Council","http://opendatacommunities.org/id/metropolitan-district-council/wolverhampton","703576","Evans Halshaw Ford","229099","150.79","Services - Professional Fees","190368296","30/08/2017","Fleet Services","Fleet Management","R4400"
"Wolverhampton City Council","http://opendatacommunities.org/id/metropolitan-district-council/wolverhampton","703576","Evans Halshaw Ford","229099","150.00","Services - Professional Fees","190368296","30/08/2017","Fleet Services","Fleet Management","R4400"
"Wolverhampton City Council","http://opendatacommunities.org/id/metropolitan-district-council/wolverhampton","703576","Evans Halshaw Ford","899132","23.50","Equipment - Purchase","190363014","04/08/2017","Fleet Services","Fleet Management","R4000"
"Wolverhampton City Council","http://opendatacommunities.org/id/metropolitan-district-council/wolverhampton","703576","Evans Halshaw Ford","898277","108.75","Equipment - Purchase","190363012","04/08/2017","Fleet Services","Fleet Management","R4000"
"Wolverhampton City Council","http://opendatacommunities.org/id/metropolitan-district-council/wolverhampton","703576","Evans Halshaw Ford","225538","131.01","Services - Professional Fees","190368294","30/08/2017","Fleet Services","Fleet Management","R4400"
"Wolverhampton City Council","http://opendatacommunities.org/id/metropolitan-district-council/wolverhampton","703576","Evans Halshaw Ford","225538","285.00","Services - Professional Fees","190368294","30/08/2017","Fleet Services","Fleet Management","R4400"
"Wolverhampton City Council","http://opendatacommunities.org/id/metropolitan-district-council/wolverhampton","703576","Evans Halshaw Ford","899599","129.49","Equipment - Purchase","190368323","30/08/2017","Fleet Services","Fleet Management","R4000"
"Wolverhampton City Council","http://opendatacommunities.org/id/metropolitan-district-council/wolverhampton","703576","Evans Halshaw Ford","899105","27.51","Equipment - Purchase","190367158","23/08/2017","Fleet Services","Fleet Management","R4000"
"Wolverhampton City Council","http://opendatacommunities.org/id/metropolitan-district-council/wolverhampton","703576","Evans Halshaw Ford","899105","73.86","Equipment - Purchase","190367158","23/08/2017","Fleet Services","Fleet Management","R4000"
"Wolverhampton City Council","http://opendatacommunities.org/id/metropolitan-district-council/wolverhampton","703576","Evans Halshaw Ford","899325","42.66","Equipment - Purchase","190367160","23/08/2017","Fleet Services","Fleet Management","R4000"
"Wolverhampton City Council","http://opendatacommunities.org/id/metropolitan-district-council/wolverhampton","703576","Evans Halshaw Ford","899325","45.86","Equipment - Purchase","190367160","23/08/2017","Fleet Services","Fleet Management","R4000"
"Wolverhampton City Council","http://opendatacommunities.org/id/metropolitan-district-council/wolverhampton","703576","Evans Halshaw Ford","899325","21.54","Equipment - Purchase","190367160","23/08/2017","Fleet Services","Fleet Management","R4000"
"Wolverhampton City Council","http://opendatacommunities.org/id/metropolitan-district-council/wolverhampton","703576","Evans Halshaw Ford","899199","52.45","Equipment - Purchase","190365878","18/08/2017","Fleet Services","Fleet Management","R4000"
"Wolverhampton City Council","http://opendatacommunities.org/id/metropolitan-district-council/wolverhampton","703576","Evans Halshaw Ford","901460","21.54","Equipment - Purchase","190365883","18/08/2017","Fleet Services","Fleet Management","R4000"
"Wolverhampton City Council","http://opendatacommunities.org/id/metropolitan-district-council/wolverhampton","703576","Evans Halshaw Ford","899304","53.68","Equipment - Purchase","190364627","16/08/2017","Fleet Services","Fleet Management","R4000"
"Wolverhampton City Council","http://opendatacommunities.org/id/metropolitan-district-council/wolverhampton","703576","Evans Halshaw Ford","899304","54.05","Equipment - Purchase","190364627","16/08/2017","Fleet Services","Fleet Management","R4000"
"Wolverhampton City Council","http://opendatacommunities.org/id/metropolitan-district-council/wolverhampton","703576","Evans Halshaw Ford","899304","2.35","Equipment - Purchase","190364627","16/08/2017","Fleet Services","Fleet Management","R4000"
"Wolverhampton City Council","http://opendatacommunities.org/id/metropolitan-district-council/wolverhampton","703576","Evans Halshaw Ford","899304","128.16","Equipment - Purchase","190364627","16/08/2017","Fleet Services","Fleet Management","R4000"
"Wolverhampton City Council","http://opendatacommunities.org/id/metropolitan-district-council/wolverhampton","703576","Evans Halshaw Ford","899304","265.12","Equipment - Purchase","190364627","16/08/2017","Fleet Services","Fleet Management","R4000"
"Wolverhampton City Council","http://opendatacommunities.org/id/metropolitan-district-council/wolverhampton","703576","Evans Halshaw Ford","899115","119.82","Equipment - Purchase","190367159","23/08/2017","Fleet Services","Fleet Management","R4000"
"Wolverhampton City Council","http://opendatacommunities.org/id/metropolitan-district-council/wolverhampton","703576","Evans Halshaw Ford","900263","-31.79","Equipment - Purchase","190367162","23/08/2017","Fleet Services","Fleet Management","R4000"
"Wolverhampton City Council","http://opendatacommunities.org/id/metropolitan-district-council/wolverhampton","703576","Evans Halshaw Ford","901331","22.93","Equipment - Purchase","190365882","18/08/2017","Fleet Services","Fleet Management","R4000"
"Wolverhampton City Council","http://opendatacommunities.org/id/metropolitan-district-council/wolverhampton","703576","Evans Halshaw Ford","901331","20.49","Equipment - Purchase","190365882","18/08/2017","Fleet Services","Fleet Management","R4000"
"Wolverhampton City Council","http://opendatacommunities.org/id/metropolitan-district-council/wolverhampton","703576","Evans Halshaw Ford","901121","-54.93","Equipment - Purchase","190365881","18/08/2017","Fleet Services","Fleet Management","R4000"
"Wolverhampton City Council","http://opendatacommunities.org/id/metropolitan-district-council/wolverhampton","703576","Evans Halshaw Ford","900385","166.32","Equipment - Purchase","190364630","16/08/2017","Fleet Services","Fleet Management","R4000"
"Wolverhampton City Council","http://opendatacommunities.org/id/metropolitan-district-council/wolverhampton","703576","Evans Halshaw Ford","899903","29.70","Equipment - Purchase","190364629","16/08/2017","Fleet Services","Fleet Management","R4000"
"Wolverhampton City Council","http://opendatacommunities.org/id/metropolitan-district-council/wolverhampton","703576","Evans Halshaw Ford","229034","112.50","Services - Professional Fees","190368295","30/08/2017","Fleet Services","Fleet Management","R4400"
"Wolverhampton City Council","http://opendatacommunities.org/id/metropolitan-district-council/wolverhampton","703576","Evans Halshaw Ford","899494","59.88","Equipment - Purchase","190368322","30/08/2017","Fleet Services","Fleet Management","R4000"
"Wolverhampton City Council","http://opendatacommunities.org/id/metropolitan-district-council/wolverhampton","703576","Evans Halshaw Ford","898287","10.12","Equipment - Purchase","190363013","04/08/2017","Fleet Services","Fleet Management","R4000"
"Wolverhampton City Council","http://opendatacommunities.org/id/metropolitan-district-council/wolverhampton","703576","Evans Halshaw Ford","899765","52.26","Equipment - Purchase","190367161","23/08/2017","Fleet Services","Fleet Management","R4000"
"Wolverhampton City Council","http://opendatacommunities.org/id/metropolitan-district-council/wolverhampton","703576","Evans Halshaw Ford","899356","39.61","Equipment - Purchase","190365879","18/08/2017","Fleet Services","Fleet Management","R4000"
"Wolverhampton City Council","http://opendatacommunities.org/id/metropolitan-district-council/wolverhampton","703576","Evans Halshaw Ford","901822","128.24","Equipment - Purchase","190365107","16/08/2017","Fleet Services","Fleet Management","R4000"
"Wolverhampton City Council","http://opendatacommunities.org/id/metropolitan-district-council/wolverhampton","703576","Evans Halshaw Ford","899336","31.79","Equipment - Purchase","190364628","16/08/2017","Fleet Services","Fleet Management","R4000"
"Wolverhampton City Council","http://opendatacommunities.org/id/metropolitan-district-council/wolverhampton","703576","Evans Halshaw Ford","898210","10.68","Equipment - Purchase","190363011","04/08/2017","Fleet Services","Fleet Management","R4000"
"Wolverhampton City Council","http://opendatacommunities.org/id/metropolitan-district-council/wolverhampton","703576","Evans Halshaw Ford","897890","40.50","Equipment - Purchase","190368321","30/08/2017","Fleet Services","Fleet Management","R4000"
"Wolverhampton City Council","http://opendatacommunities.org/id/metropolitan-district-council/wolverhampton","703576","Evans Halshaw Ford","897890","20.00","Equipment - Purchase","190368321","30/08/2017","Fleet Services","Fleet Management","R4000"
"Wolverhampton City Council","http://opendatacommunities.org/id/metropolitan-district-council/wolverhampton","703576","Evans Halshaw Ford","897890","32.77","Equipment - Purchase","190368321","30/08/2017","Fleet Services","Fleet Management","R4000"
"Wolverhampton City Council","http://opendatacommunities.org/id/metropolitan-district-council/wolverhampton","703598","Eyears","7039741","225.88","Grant Payments","130183836","23/08/2017","Early Intervention","EIP Locality 4 - Bingley","R4700"
"Wolverhampton City Council","http://opendatacommunities.org/id/metropolitan-district-council/wolverhampton","703598","Eyears","7039741","-225.88","Grant Payments","130183836","23/08/2017","Early Intervention","EIP Locality 4 - Bingley","R4700"
"Wolverhampton City Council","http://opendatacommunities.org/id/metropolitan-district-council/wolverhampton","703598","Eyears","7039741","225.88","Grant Payments","130183836","23/08/2017","Early Intervention","EIP Locality 4 - Bingley","R4700"
"Wolverhampton City Council","http://opendatacommunities.org/id/metropolitan-district-council/wolverhampton","703598","Eyears","7040357","364.39","Grant Payments","130185836","25/08/2017","Early Intervention","EIP Locality 4 - Bingley","R4700"
"Wolverhampton City Council","http://opendatacommunities.org/id/metropolitan-district-council/wolverhampton","703598","Eyears","7040357","-364.39","Grant Payments","130185836","25/08/2017","Early Intervention","EIP Locality 4 - Bingley","R4700"
"Wolverhampton City Council","http://opendatacommunities.org/id/metropolitan-district-council/wolverhampton","703598","Eyears","7040357","364.39","Grant Payments","130185836","25/08/2017","Early Intervention","EIP Locality 4 - Bingley","R4700"
"Wolverhampton City Council","http://opendatacommunities.org/id/metropolitan-district-council/wolverhampton","703598","Eyears","7040564","124.89","Grant Payments","130185837","25/08/2017","Early Intervention","EIP Locality 4 - Bingley","R4700"
"Wolverhampton City Council","http://opendatacommunities.org/id/metropolitan-district-council/wolverhampton","703598","Eyears","7040564","124.89","Grant Payments","130185837","25/08/2017","Early Intervention","EIP Locality 4 - Bingley","R4700"
"Wolverhampton City Council","http://opendatacommunities.org/id/metropolitan-district-council/wolverhampton","703598","Eyears","7040564","-124.89","Grant Payments","130185837","25/08/2017","Early Intervention","EIP Locality 4 - Bingley","R4700"
"Wolverhampton City Council","http://opendatacommunities.org/id/metropolitan-district-council/wolverhampton","703598","Eyears","7040889","85.50","Grant Payments","130185839","25/08/2017","Early Intervention","EIP Locality 4 - Bingley","R4700"
"Wolverhampton City Council","http://opendatacommunities.org/id/metropolitan-district-council/wolverhampton","703598","Eyears","7039425","26.26","Agency Staff","130183835","11/08/2017","Early Intervention","EIP Locality 4 - Bingley","R1100"
"Wolverhampton City Council","http://opendatacommunities.org/id/metropolitan-district-council/wolverhampton","703598","Eyears","7039946","291.06","Grant Payments","130183837","23/08/2017","Early Intervention","EIP Locality 4 - Bingley","R4700"
"Wolverhampton City Council","http://opendatacommunities.org/id/metropolitan-district-council/wolverhampton","703598","Eyears","7039946","-291.06","Grant Payments","130183837","23/08/2017","Early Intervention","EIP Locality 4 - Bingley","R4700"
"Wolverhampton City Council","http://opendatacommunities.org/id/metropolitan-district-council/wolverhampton","703598","Eyears","7039946","291.06","Grant Payments","130183837","23/08/2017","Early Intervention","EIP Locality 4 - Bingley","R4700"
"Wolverhampton City Council","http://opendatacommunities.org/id/metropolitan-district-council/wolverhampton","703598","Eyears","7040756","200.31","Grant Payments","130185838","25/08/2017","Early Intervention","EIP Locality 4 - Bingley","R4700"
"Wolverhampton City Council","http://opendatacommunities.org/id/metropolitan-district-council/wolverhampton","703598","Eyears","7040756","-200.31","Grant Payments","130185838","25/08/2017","Early Intervention","EIP Locality 4 - Bingley","R4700"
"Wolverhampton City Council","http://opendatacommunities.org/id/metropolitan-district-council/wolverhampton","703598","Eyears","7040756","200.31","Grant Payments","130185838","25/08/2017","Early Intervention","EIP Locality 4 - Bingley","R4700"
"Wolverhampton City Council","http://opendatacommunities.org/id/metropolitan-district-council/wolverhampton","703600","F & M Building Services","16/0585/DFG","3,770.00","Grants paid out","190367185","23/08/2017","","Disabled Facilities Grants","C5000"
"Wolverhampton City Council","http://opendatacommunities.org/id/metropolitan-district-council/wolverhampton","703600","F & M Building Services","16/0010/DFG","8,218.00","Grants paid out","190365831","18/08/2017","","Disabled Facilities Grants","C5000"
"Wolverhampton City Council","http://opendatacommunities.org/id/metropolitan-district-council/wolverhampton","703609","F.W. Bickford & Sons Limited","324351","85.00","Hire of Vehicles","190364054","11/08/2017","Fleet Services","Fleet Management","R3200"
"Wolverhampton City Council","http://opendatacommunities.org/id/metropolitan-district-council/wolverhampton","703609","F.W. Bickford & Sons Limited","323629","1,955.00","Hire of Vehicles","190364053","11/08/2017","Fleet Services","Fleet Management","R3200"
"Wolverhampton City Council","http://opendatacommunities.org/id/metropolitan-district-council/wolverhampton","703617","Facultatieve Technologies Limited","17102640","172.61","Equipment - R & M","130182047","04/08/2017","Bereavement Services","Crematorium","R4003"
"Wolverhampton City Council","http://opendatacommunities.org/id/metropolitan-district-council/wolverhampton","703617","Facultatieve Technologies Limited","17102067","1,181.99","Equipment - R & M","130184321","16/08/2017","Bereavement Services","Crematorium","R4003"
"Wolverhampton City Council","http://opendatacommunities.org/id/metropolitan-district-council/wolverhampton","703627","Falon Nameplates Limited","2171386","431.10","Materials for resale","130181766","09/08/2017","Bereavement Services","Crematorium","R4008"
"Wolverhampton City Council","http://opendatacommunities.org/id/metropolitan-district-council/wolverhampton","703627","Falon Nameplates Limited","2171411","91.60","Materials for resale","130182380","09/08/2017","Bereavement Services","Crematorium","R4008"
"Wolverhampton City Council","http://opendatacommunities.org/id/metropolitan-district-council/wolverhampton","703627","Falon Nameplates Limited","2171283","45.80","Materials for resale","130179788","09/08/2017","Bereavement Services","Crematorium","R4008"
"Wolverhampton City Council","http://opendatacommunities.org/id/metropolitan-district-council/wolverhampton","703627","Falon Nameplates Limited","2171510","45.80","Materials for resale","130184610","16/08/2017","Bereavement Services","Crematorium","R4008"
"Wolverhampton City Council","http://opendatacommunities.org/id/metropolitan-district-council/wolverhampton","703627","Falon Nameplates Limited","2171299","99.60","Materials for resale","130179789","09/08/2017","Bereavement Services","Crematorium","R4008"
"Wolverhampton City Council","http://opendatacommunities.org/id/metropolitan-district-council/wolverhampton","703627","Falon Nameplates Limited","2171192","120.75","Materials for resale","130177628","09/08/2017","Bereavement Services","Crematorium","R4008"
"Wolverhampton City Council","http://opendatacommunities.org/id/metropolitan-district-council/wolverhampton","703631","Family Links","1194","312.50","Equipment - Purchase","130184322","30/08/2017","Early Intervention","EIP Locality 3 - Graiseley","R4000"
"Wolverhampton City Council","http://opendatacommunities.org/id/metropolitan-district-council/wolverhampton","703631","Family Links","1194","19.50","Comms - Postage","130184322","30/08/2017","Early Intervention","EIP Locality 3 - Graiseley","R4503"
"Wolverhampton City Council","http://opendatacommunities.org/id/metropolitan-district-council/wolverhampton","703644","Fast-Clean Group","112584","675.00","Contract Cleaning","130183436","23/08/2017","Maintenance Programme","Civic Centre Repairs & Maintenance","R2700"
"Wolverhampton City Council","http://opendatacommunities.org/id/metropolitan-district-council/wolverhampton","703647","Fastrack Maintenance Limited","14215","350.00","Grounds Maintenance - Non Contract","130186136","25/08/2017","Schools","Woodthorne Primary School","R2076"
"Wolverhampton City Council","http://opendatacommunities.org/id/metropolitan-district-council/wolverhampton","703658","Feast UK Limited","07940","288.71","Provisions (Resale)","130183838","16/08/2017","Leisure Services","Bert Williams Leisure Centre Caf�","R4102"
"Wolverhampton City Council","http://opendatacommunities.org/id/metropolitan-district-council/wolverhampton","703658","Feast UK Limited","07940","-288.71","Provisions (Resale)","130183838","16/08/2017","Leisure Services","Bert Williams Leisure Centre Caf�","R4102"
"Wolverhampton City Council","http://opendatacommunities.org/id/metropolitan-district-council/wolverhampton","703658","Feast UK Limited","07940","12.79","Provisions (Resale)","130183838","16/08/2017","Leisure Services","Bert Williams Leisure Centre Caf�","R4102"
"Wolverhampton City Council","http://opendatacommunities.org/id/metropolitan-district-council/wolverhampton","703658","Feast UK Limited","07940","275.92","Provisions (Resale)","130183838","16/08/2017","Leisure Services","Bert Williams Leisure Centre Caf�","R4102"
"Wolverhampton City Council","http://opendatacommunities.org/id/metropolitan-district-council/wolverhampton","703658","Feast UK Limited","07997","27.76","Provisions (Resale)","130185520","23/08/2017","Leisure Services","Bert Williams Leisure Centre Caf�","R4102"
"Wolverhampton City Council","http://opendatacommunities.org/id/metropolitan-district-council/wolverhampton","703658","Feast UK Limited","07997","-27.76","Provisions (Resale)","130185520","23/08/2017","Leisure Services","Bert Williams Leisure Centre Caf�","R4102"
"Wolverhampton City Council","http://opendatacommunities.org/id/metropolitan-district-council/wolverhampton","703658","Feast UK Limited","07997","27.76","Provisions (Resale)","130185520","23/08/2017","Leisure Services","Bert Williams Leisure Centre Caf�","R4102"
"Wolverhampton City Council","http://opendatacommunities.org/id/metropolitan-district-council/wolverhampton","703696","First Personnel Services PLC","00389332","292.79","Agency Staff","130185176","30/08/2017","Customer Services","City Direct","R1100"
"Wolverhampton City Council","http://opendatacommunities.org/id/metropolitan-district-council/wolverhampton","703696","First Personnel Services PLC","00388595","388.27","Agency Staff","130181179","04/08/2017","Customer Services","City Direct","R1100"
"Wolverhampton City Council","http://opendatacommunities.org/id/metropolitan-district-council/wolverhampton","703696","First Personnel Services PLC","00389099","381.90","Agency Staff","130183064","09/08/2017","Customer Services","City Direct","R1100"
"Wolverhampton City Council","http://opendatacommunities.org/id/metropolitan-district-council/wolverhampton","703696","First Personnel Services PLC","00388860","471.01","Agency Staff","130182230","04/08/2017","Customer Services","City Direct","R1100"
"Wolverhampton City Council","http://opendatacommunities.org/id/metropolitan-district-council/wolverhampton","703696","First Personnel Services PLC","00389570","267.33","Agency Staff","130185177","30/08/2017","Customer Services","City Direct","R1100"
"Wolverhampton City Council","http://opendatacommunities.org/id/metropolitan-district-council/wolverhampton","703700","First Steps Childrens Nursery Limited","TFT Summer 2017 Inst 2","2,923.40","Grant Payments","190363654","09/08/2017","Early Years","Early Years Entitlement Funding for Disadvantaged 2 Year Olds","R4700"
"Wolverhampton City Council","http://opendatacommunities.org/id/metropolitan-district-council/wolverhampton","703700","First Steps Childrens Nursery Limited","NEF Summer 2017 Inst 2","18,002.12","TPP - Private Nursery Education Funding","190363653","09/08/2017","Early Years","Early Years Universal Entitlement for 3 and 4 Year Olds","R5035"
"Wolverhampton City Council","http://opendatacommunities.org/id/metropolitan-district-council/wolverhampton","703708","Five Rivers Child Care Limited","P151601 17091720170829","4,181.24","TPP - Placement Foster Care Agency","190368905","30/08/2017","Looked After Children","Out of City Placements","R5602"
"Wolverhampton City Council","http://opendatacommunities.org/id/metropolitan-district-council/wolverhampton","703708","Five Rivers Child Care Limited","P151601 17091720170829","3,020.00","TPP - Placement Foster Care Agency","190368905","30/08/2017","Looked After Children","Out of City Placements","R5602"
"Wolverhampton City Council","http://opendatacommunities.org/id/metropolitan-district-council/wolverhampton","703708","Five Rivers Child Care Limited","P148767 20081720170801","4,181.24","TPP - Placement Foster Care Agency","190362666","02/08/2017","Looked After Children","Out of City Placements","R5602"
"Wolverhampton City Council","http://opendatacommunities.org/id/metropolitan-district-council/wolverhampton","703708","Five Rivers Child Care Limited","P148767 20081720170801","3,020.00","TPP - Placement Foster Care Agency","190362666","02/08/2017","Looked After Children","Out of City Placements","R5602"
"Wolverhampton City Council","http://opendatacommunities.org/id/metropolitan-district-council/wolverhampton","703717","Flogas UK Limited","3324840","10.10","Gas","130182536","02/08/2017","School Planning & Resources","Towers Outdoor Education Centre","R2101"
"Wolverhampton City Council","http://opendatacommunities.org/id/metropolitan-district-council/wolverhampton","703745","Forensics Limited T/A Roar Forensics","0000027955","389.50","Services - Professional Fees","130185637","25/08/2017","Democratic Services","Coroners Service","R4400"
"Wolverhampton City Council","http://opendatacommunities.org/id/metropolitan-district-council/wolverhampton","703745","Forensics Limited T/A Roar Forensics","0000027915","427.50","Services - Professional Fees","130185636","25/08/2017","Democratic Services","Coroners Service","R4400"
"Wolverhampton City Council","http://opendatacommunities.org/id/metropolitan-district-council/wolverhampton","703745","Forensics Limited T/A Roar Forensics","0000027555","351.50","Services - Professional Fees","130184323","16/08/2017","Democratic Services","Coroners Service","R4400"
"Wolverhampton City Council","http://opendatacommunities.org/id/metropolitan-district-council/wolverhampton","703745","Forensics Limited T/A Roar Forensics","0000027683","351.50","Services - Professional Fees","130184863","18/08/2017","Democratic Services","Coroners Service","R4400"
"Wolverhampton City Council","http://opendatacommunities.org/id/metropolitan-district-council/wolverhampton","703745","Forensics Limited T/A Roar Forensics","0000027914","389.50","Services - Professional Fees","130185635","25/08/2017","Democratic Services","Coroners Service","R4400"
"Wolverhampton City Council","http://opendatacommunities.org/id/metropolitan-district-council/wolverhampton","703745","Forensics Limited T/A Roar Forensics","0000027799","294.50","Services - Professional Fees","130184864","18/08/2017","Democratic Services","Coroners Service","R4400"
"Wolverhampton City Council","http://opendatacommunities.org/id/metropolitan-district-council/wolverhampton","703745","Forensics Limited T/A Roar Forensics","0000027862","470.25","Services - Professional Fees","130185634","25/08/2017","Democratic Services","Coroners Service","R4400"
"Wolverhampton City Council","http://opendatacommunities.org/id/metropolitan-district-council/wolverhampton","703823","Ft Leisure Limited","10613","883.20","Equipment - Purchase","130180871","09/08/2017","Maintenance Programme","Centralised R&M","R4000"
"Wolverhampton City Council","http://opendatacommunities.org/id/metropolitan-district-council/wolverhampton","703823","Ft Leisure Limited","10718","300.00","R&M - Departmental planned (external)","130185841","30/08/2017","Leisure Services","Bert Williams Leisure Centre","R2001"
"Wolverhampton City Council","http://opendatacommunities.org/id/metropolitan-district-council/wolverhampton","703833","Fumex Limited","436023","210.00","Equipment - R & M","190365870","18/08/2017","Fleet Services","Fleet Management","R4003"
"Wolverhampton City Council","http://opendatacommunities.org/id/metropolitan-district-council/wolverhampton","703882","Gallagher Bassett International Limited","Claims Handling Fee - Your Ref: NC10620","8,768.00","Insurance - General","190362865","04/08/2017","Audit Services","General","R4962"
"Wolverhampton City Council","http://opendatacommunities.org/id/metropolitan-district-council/wolverhampton","703895","Gatenby Sanderson Limited","33460","2,343.25","Agency Staff","130182945","30/08/2017","Director of Education","Director of Education","R1100"
"Wolverhampton City Council","http://opendatacommunities.org/id/metropolitan-district-council/wolverhampton","703895","Gatenby Sanderson Limited","33372","4,258.50","Training Expenses","130182537","02/08/2017","Human Resources","Centralised Training","R1650"
"Wolverhampton City Council","http://opendatacommunities.org/id/metropolitan-district-council/wolverhampton","703895","Gatenby Sanderson Limited","33398","1,802.50","Agency Staff","130182693","30/08/2017","Director of Education","Director of Education","R1100"
"Wolverhampton City Council","http://opendatacommunities.org/id/metropolitan-district-council/wolverhampton","703895","Gatenby Sanderson Limited","33135","7,500.00","Staff Advertising Costs","130186173","30/08/2017","Director of Education","Director of Education","R1700"
"Wolverhampton City Council","http://opendatacommunities.org/id/metropolitan-district-council/wolverhampton","703901","Geeky Creative","765","750.00","Services - Professional Fees","130183839","11/08/2017","Visitor Economy","Civic Halls Non-Direct Event Management Account","R4400"
"Wolverhampton City Council","http://opendatacommunities.org/id/metropolitan-district-council/wolverhampton","703908","General Battery Supplies","162574","125.00","Equipment - Purchase","130184141","30/08/2017","Independent Living Service","Telecare","R4000"
"Wolverhampton City Council","http://opendatacommunities.org/id/metropolitan-district-council/wolverhampton","703934","Geze UK Limited","88329337","144.00","Services - Security","130183065","23/08/2017","Maintenance Programme","Centralised R&M","R4405"
"Wolverhampton City Council","http://opendatacommunities.org/id/metropolitan-district-council/wolverhampton","703955","Glaze Auto Parts Limited","IN673686","34.75","Equipment - Purchase","190367168","23/08/2017","Fleet Services","Fleet Management","R4000"
"Wolverhampton City Council","http://opendatacommunities.org/id/metropolitan-district-council/wolverhampton","703955","Glaze Auto Parts Limited","IN675775","12.00","Equipment - Purchase","190367175","23/08/2017","Fleet Services","Fleet Management","R4000"
"Wolverhampton City Council","http://opendatacommunities.org/id/metropolitan-district-council/wolverhampton","703955","Glaze Auto Parts Limited","IN675429","9.30","Equipment - Purchase","190365897","18/08/2017","Fleet Services","Fleet Management","R4000"
"Wolverhampton City Council","http://opendatacommunities.org/id/metropolitan-district-council/wolverhampton","703955","Glaze Auto Parts Limited","IN675429","62.44","Equipment - Purchase","190365897","18/08/2017","Fleet Services","Fleet Management","R4000"
"Wolverhampton City Council","http://opendatacommunities.org/id/metropolitan-district-council/wolverhampton","703955","Glaze Auto Parts Limited","IN672278","217.00","Equipment - Purchase","190364645","16/08/2017","Fleet Services","Fleet Management","R4000"
"Wolverhampton City Council","http://opendatacommunities.org/id/metropolitan-district-council/wolverhampton","703955","Glaze Auto Parts Limited","IN672278","50.00","Equipment - Purchase","190364645","16/08/2017","Fleet Services","Fleet Management","R4000"
"Wolverhampton City Council","http://opendatacommunities.org/id/metropolitan-district-council/wolverhampton","703955","Glaze Auto Parts Limited","IN674750","88.68","Equipment - Purchase","190365116","16/08/2017","Fleet Services","Fleet Management","R4000"
"Wolverhampton City Council","http://opendatacommunities.org/id/metropolitan-district-council/wolverhampton","703955","Glaze Auto Parts Limited","IN673123","99.92","Equipment - Purchase","190365114","16/08/2017","Fleet Services","Fleet Management","R4000"
"Wolverhampton City Council","http://opendatacommunities.org/id/metropolitan-district-council/wolverhampton","703955","Glaze Auto Parts Limited","IN673123","2.94","Equipment - Purchase","190365114","16/08/2017","Fleet Services","Fleet Management","R4000"
"Wolverhampton City Council","http://opendatacommunities.org/id/metropolitan-district-council/wolverhampton","703955","Glaze Auto Parts Limited","IN674895","55.12","Equipment - Purchase","190365121","16/08/2017","Fleet Services","Fleet Management","R4000"
"Wolverhampton City Council","http://opendatacommunities.org/id/metropolitan-district-council/wolverhampton","703955","Glaze Auto Parts Limited","IN674895","70.86","Equipment - Purchase","190365121","16/08/2017","Fleet Services","Fleet Management","R4000"
"Wolverhampton City Council","http://opendatacommunities.org/id/metropolitan-district-council/wolverhampton","703955","Glaze Auto Parts Limited","IN674895","34.98","Equipment - Purchase","190365121","16/08/2017","Fleet Services","Fleet Management","R4000"
"Wolverhampton City Council","http://opendatacommunities.org/id/metropolitan-district-council/wolverhampton","703955","Glaze Auto Parts Limited","IN675153","17.60","Equipment - Purchase","190365124","16/08/2017","Fleet Services","Fleet Management","R4000"
"Wolverhampton City Council","http://opendatacommunities.org/id/metropolitan-district-council/wolverhampton","703955","Glaze Auto Parts Limited","IN675183","46.03","Equipment - Purchase","190365125","16/08/2017","Fleet Services","Fleet Management","R4000"
"Wolverhampton City Council","http://opendatacommunities.org/id/metropolitan-district-council/wolverhampton","703955","Glaze Auto Parts Limited","CR122479","-30.00","Equipment - Purchase","190368330","30/08/2017","Fleet Services","Fleet Management","R4000"
"Wolverhampton City Council","http://opendatacommunities.org/id/metropolitan-district-council/wolverhampton","703955","Glaze Auto Parts Limited","CR122388","-100.00","Equipment - Purchase","190368329","30/08/2017","Fleet Services","Fleet Management","R4000"
"Wolverhampton City Council","http://opendatacommunities.org/id/metropolitan-district-council/wolverhampton","703955","Glaze Auto Parts Limited","IN673707","29.84","Equipment - Purchase","190368342","30/08/2017","Fleet Services","Fleet Management","R4000"
"Wolverhampton City Council","http://opendatacommunities.org/id/metropolitan-district-council/wolverhampton","703955","Glaze Auto Parts Limited","IN673707","73.23","Equipment - Purchase","190368342","30/08/2017","Fleet Services","Fleet Management","R4000"
"Wolverhampton City Council","http://opendatacommunities.org/id/metropolitan-district-council/wolverhampton","703955","Glaze Auto Parts Limited","IN675443","13.05","Equipment - Purchase","190368345","30/08/2017","Fleet Services","Fleet Management","R4000"
"Wolverhampton City Council","http://opendatacommunities.org/id/metropolitan-district-council/wolverhampton","703955","Glaze Auto Parts Limited","IN672821","12.50","Equipment - Purchase","190363030","04/08/2017","Fleet Services","Fleet Management","R4000"
"Wolverhampton City Council","http://opendatacommunities.org/id/metropolitan-district-council/wolverhampton","703955","Glaze Auto Parts Limited","IN672644","483.80","Equipment - Purchase","190363027","04/08/2017","Fleet Services","Fleet Management","R4000"
"Wolverhampton City Council","http://opendatacommunities.org/id/metropolitan-district-council/wolverhampton","703955","Glaze Auto Parts Limited","IN673374","265.53","Equipment - Purchase","190363032","04/08/2017","Fleet Services","Fleet Management","R4000"
"Wolverhampton City Council","http://opendatacommunities.org/id/metropolitan-district-council/wolverhampton","703955","Glaze Auto Parts Limited","IN672669","21.30","Equipment - Purchase","190363029","04/08/2017","Fleet Services","Fleet Management","R4000"
"Wolverhampton City Council","http://opendatacommunities.org/id/metropolitan-district-council/wolverhampton","703955","Glaze Auto Parts Limited","IN673676","17.15","Equipment - Purchase","190368341","30/08/2017","Fleet Services","Fleet Management","R4000"
"Wolverhampton City Council","http://opendatacommunities.org/id/metropolitan-district-council/wolverhampton","703955","Glaze Auto Parts Limited","IN673676","43.15","Equipment - Purchase","190368341","30/08/2017","Fleet Services","Fleet Management","R4000"
"Wolverhampton City Council","http://opendatacommunities.org/id/metropolitan-district-council/wolverhampton","703955","Glaze Auto Parts Limited","IN673676","40.55","Equipment - Purchase","190368341","30/08/2017","Fleet Services","Fleet Management","R4000"
"Wolverhampton City Council","http://opendatacommunities.org/id/metropolitan-district-council/wolverhampton","703955","Glaze Auto Parts Limited","IN671570","100.00","Equipment - Purchase","190368334","30/08/2017","Fleet Services","Fleet Management","R4000"
"Wolverhampton City Council","http://opendatacommunities.org/id/metropolitan-district-council/wolverhampton","703955","Glaze Auto Parts Limited","IN672127","380.00","Services - Professional Fees","190368336","30/08/2017","Fleet Services","Fleet Management","R4400"
"Wolverhampton City Council","http://opendatacommunities.org/id/metropolitan-district-council/wolverhampton","703955","Glaze Auto Parts Limited","IN672706","3.20","Equipment - Purchase","190368338","30/08/2017","Fleet Services","Fleet Management","R4000"
"Wolverhampton City Council","http://opendatacommunities.org/id/metropolitan-district-council/wolverhampton","703955","Glaze Auto Parts Limited","IN671570","232.03","Equipment - Purchase","190368334","30/08/2017","Fleet Services","Fleet Management","R4000"
"Wolverhampton City Council","http://opendatacommunities.org/id/metropolitan-district-council/wolverhampton","703955","Glaze Auto Parts Limited","IN675259","13.05","Equipment - Purchase","190365127","16/08/2017","Fleet Services","Fleet Management","R4000"
"Wolverhampton City Council","http://opendatacommunities.org/id/metropolitan-district-council/wolverhampton","703955","Glaze Auto Parts Limited","IN674768","35.96","Equipment - Purchase","190365117","16/08/2017","Fleet Services","Fleet Management","R4000"
"Wolverhampton City Council","http://opendatacommunities.org/id/metropolitan-district-council/wolverhampton","703955","Glaze Auto Parts Limited","IN674873","86.20","Equipment - Purchase","190365120","16/08/2017","Fleet Services","Fleet Management","R4000"
"Wolverhampton City Council","http://opendatacommunities.org/id/metropolitan-district-council/wolverhampton","703955","Glaze Auto Parts Limited","IN674467","169.88","Equipment - Purchase","190364650","16/08/2017","Fleet Services","Fleet Management","R4000"
"Wolverhampton City Council","http://opendatacommunities.org/id/metropolitan-district-council/wolverhampton","703955","Glaze Auto Parts Limited","CR122564","-15.00","Equipment - Purchase","190364634","16/08/2017","Fleet Services","Fleet Management","R4000"
"Wolverhampton City Council","http://opendatacommunities.org/id/metropolitan-district-council/wolverhampton","703955","Glaze Auto Parts Limited","IN674413","1.40","Equipment - Purchase","190367169","23/08/2017","Fleet Services","Fleet Management","R4000"
"Wolverhampton City Council","http://opendatacommunities.org/id/metropolitan-district-council/wolverhampton","703955","Glaze Auto Parts Limited","IN674413","10.00","Equipment - Purchase","190367169","23/08/2017","Fleet Services","Fleet Management","R4000"
"Wolverhampton City Council","http://opendatacommunities.org/id/metropolitan-district-council/wolverhampton","703955","Glaze Auto Parts Limited","IN675738","34.40","Equipment - Purchase","190367174","23/08/2017","Fleet Services","Fleet Management","R4000"
"Wolverhampton City Council","http://opendatacommunities.org/id/metropolitan-district-council/wolverhampton","703955","Glaze Auto Parts Limited","IN675667","14.88","Equipment - Purchase","190367173","23/08/2017","Fleet Services","Fleet Management","R4000"
"Wolverhampton City Council","http://opendatacommunities.org/id/metropolitan-district-council/wolverhampton","703955","Glaze Auto Parts Limited","IN675667","5.10","Equipment - Purchase","190367173","23/08/2017","Fleet Services","Fleet Management","R4000"
"Wolverhampton City Council","http://opendatacommunities.org/id/metropolitan-district-council/wolverhampton","703955","Glaze Auto Parts Limited","IN675667","14.90","Equipment - Purchase","190367173","23/08/2017","Fleet Services","Fleet Management","R4000"
"Wolverhampton City Council","http://opendatacommunities.org/id/metropolitan-district-council/wolverhampton","703955","Glaze Auto Parts Limited","IN675667","38.73","Equipment - Purchase","190367173","23/08/2017","Fleet Services","Fleet Management","R4000"
"Wolverhampton City Council","http://opendatacommunities.org/id/metropolitan-district-council/wolverhampton","703955","Glaze Auto Parts Limited","IN673990","14.38","Equipment - Purchase","190365896","18/08/2017","Fleet Services","Fleet Management","R4000"
"Wolverhampton City Council","http://opendatacommunities.org/id/metropolitan-district-council/wolverhampton","703955","Glaze Auto Parts Limited","IN672650","9.19","Equipment - Purchase","190363028","04/08/2017","Fleet Services","Fleet Management","R4000"
"Wolverhampton City Council","http://opendatacommunities.org/id/metropolitan-district-council/wolverhampton","703955","Glaze Auto Parts Limited","IN673640","46.40","Equipment - Purchase","190363033","04/08/2017","Fleet Services","Fleet Management","R4000"
"Wolverhampton City Council","http://opendatacommunities.org/id/metropolitan-district-council/wolverhampton","703955","Glaze Auto Parts Limited","IN673640","37.35","Equipment - Purchase","190363033","04/08/2017","Fleet Services","Fleet Management","R4000"
"Wolverhampton City Council","http://opendatacommunities.org/id/metropolitan-district-council/wolverhampton","703955","Glaze Auto Parts Limited","IN673640","55.95","Equipment - Purchase","190363033","04/08/2017","Fleet Services","Fleet Management","R4000"
"Wolverhampton City Council","http://opendatacommunities.org/id/metropolitan-district-council/wolverhampton","703955","Glaze Auto Parts Limited","IN673640","7.54","Equipment - Purchase","190363033","04/08/2017","Fleet Services","Fleet Management","R4000"
"Wolverhampton City Council","http://opendatacommunities.org/id/metropolitan-district-council/wolverhampton","703955","Glaze Auto Parts Limited","IN673640","7.54","Equipment - Purchase","190363033","04/08/2017","Fleet Services","Fleet Management","R4000"
"Wolverhampton City Council","http://opendatacommunities.org/id/metropolitan-district-council/wolverhampton","703955","Glaze Auto Parts Limited","IN673640","8.73","Equipment - Purchase","190363033","04/08/2017","Fleet Services","Fleet Management","R4000"
"Wolverhampton City Council","http://opendatacommunities.org/id/metropolitan-district-council/wolverhampton","703955","Glaze Auto Parts Limited","IN673640","82.68","Equipment - Purchase","190363033","04/08/2017","Fleet Services","Fleet Management","R4000"
"Wolverhampton City Council","http://opendatacommunities.org/id/metropolitan-district-council/wolverhampton","703955","Glaze Auto Parts Limited","IN672137","30.00","Equipment - Purchase","190368337","30/08/2017","Fleet Services","Fleet Management","R4000"
"Wolverhampton City Council","http://opendatacommunities.org/id/metropolitan-district-council/wolverhampton","703955","Glaze Auto Parts Limited","IN672137","195.00","Equipment - Purchase","190368337","30/08/2017","Fleet Services","Fleet Management","R4000"
"Wolverhampton City Council","http://opendatacommunities.org/id/metropolitan-district-council/wolverhampton","703955","Glaze Auto Parts Limited","IN673523","7.71","Equipment - Purchase","190368340","30/08/2017","Fleet Services","Fleet Management","R4000"
"Wolverhampton City Council","http://opendatacommunities.org/id/metropolitan-district-council/wolverhampton","703955","Glaze Auto Parts Limited","IN673793","31.41","Equipment - Purchase","190368343","30/08/2017","Fleet Services","Fleet Management","R4000"
"Wolverhampton City Council","http://opendatacommunities.org/id/metropolitan-district-council/wolverhampton","703955","Glaze Auto Parts Limited","IN673620","101.76","Equipment - Purchase","190367167","23/08/2017","Fleet Services","Fleet Management","R4000"
"Wolverhampton City Council","http://opendatacommunities.org/id/metropolitan-district-council/wolverhampton","703955","Glaze Auto Parts Limited","IN675632","55.86","Equipment - Purchase","190367172","23/08/2017","Fleet Services","Fleet Management","R4000"
"Wolverhampton City Council","http://opendatacommunities.org/id/metropolitan-district-council/wolverhampton","703955","Glaze Auto Parts Limited","IN675632","60.80","Equipment - Purchase","190367172","23/08/2017","Fleet Services","Fleet Management","R4000"
"Wolverhampton City Council","http://opendatacommunities.org/id/metropolitan-district-council/wolverhampton","703955","Glaze Auto Parts Limited","IN674381","11.98","Equipment - Purchase","190364649","16/08/2017","Fleet Services","Fleet Management","R4000"
"Wolverhampton City Council","http://opendatacommunities.org/id/metropolitan-district-council/wolverhampton","703955","Glaze Auto Parts Limited","IN674381","6.63","Equipment - Purchase","190364649","16/08/2017","Fleet Services","Fleet Management","R4000"
"Wolverhampton City Council","http://opendatacommunities.org/id/metropolitan-district-council/wolverhampton","703955","Glaze Auto Parts Limited","IN674227","11.98","Equipment - Purchase","190364648","16/08/2017","Fleet Services","Fleet Management","R4000"
"Wolverhampton City Council","http://opendatacommunities.org/id/metropolitan-district-council/wolverhampton","703955","Glaze Auto Parts Limited","IN674227","41.37","Equipment - Purchase","190364648","16/08/2017","Fleet Services","Fleet Management","R4000"
"Wolverhampton City Council","http://opendatacommunities.org/id/metropolitan-district-council/wolverhampton","703955","Glaze Auto Parts Limited","IN674227","17.84","Equipment - Purchase","190364648","16/08/2017","Fleet Services","Fleet Management","R4000"
"Wolverhampton City Council","http://opendatacommunities.org/id/metropolitan-district-council/wolverhampton","703955","Glaze Auto Parts Limited","IN674227","19.38","Equipment - Purchase","190364648","16/08/2017","Fleet Services","Fleet Management","R4000"
"Wolverhampton City Council","http://opendatacommunities.org/id/metropolitan-district-council/wolverhampton","703955","Glaze Auto Parts Limited","IN674790","50.00","Equipment - Purchase","190365118","16/08/2017","Fleet Services","Fleet Management","R4000"
"Wolverhampton City Council","http://opendatacommunities.org/id/metropolitan-district-council/wolverhampton","703955","Glaze Auto Parts Limited","IN674628","22.40","Equipment - Purchase","190365115","16/08/2017","Fleet Services","Fleet Management","R4000"
"Wolverhampton City Council","http://opendatacommunities.org/id/metropolitan-district-council/wolverhampton","703955","Glaze Auto Parts Limited","IN675097","53.94","Equipment - Purchase","190365123","16/08/2017","Fleet Services","Fleet Management","R4000"
"Wolverhampton City Council","http://opendatacommunities.org/id/metropolitan-district-council/wolverhampton","703955","Glaze Auto Parts Limited","CR122564.1","-50.00","Equipment - Purchase","190364635","16/08/2017","Fleet Services","Fleet Management","R4000"
"Wolverhampton City Council","http://opendatacommunities.org/id/metropolitan-district-council/wolverhampton","703955","Glaze Auto Parts Limited","IN674629","1.40","Equipment - Purchase","190368344","30/08/2017","Fleet Services","Fleet Management","R4000"
"Wolverhampton City Council","http://opendatacommunities.org/id/metropolitan-district-council/wolverhampton","703955","Glaze Auto Parts Limited","IN671980","11.31","Equipment - Purchase","190368335","30/08/2017","Fleet Services","Fleet Management","R4000"
"Wolverhampton City Council","http://opendatacommunities.org/id/metropolitan-district-council/wolverhampton","703955","Glaze Auto Parts Limited","IN673417","17.49","Equipment - Purchase","190368339","30/08/2017","Fleet Services","Fleet Management","R4000"
"Wolverhampton City Council","http://opendatacommunities.org/id/metropolitan-district-council/wolverhampton","703955","Glaze Auto Parts Limited","IN673771","19.75","Equipment - Purchase","190363034","04/08/2017","Fleet Services","Fleet Management","R4000"
"Wolverhampton City Council","http://opendatacommunities.org/id/metropolitan-district-council/wolverhampton","703955","Glaze Auto Parts Limited","IN672832","29.85","Equipment - Purchase","190363031","04/08/2017","Fleet Services","Fleet Management","R4000"
"Wolverhampton City Council","http://opendatacommunities.org/id/metropolitan-district-council/wolverhampton","703955","Glaze Auto Parts Limited","IN672885","10.12","Equipment - Purchase","190365895","18/08/2017","Fleet Services","Fleet Management","R4000"
"Wolverhampton City Council","http://opendatacommunities.org/id/metropolitan-district-council/wolverhampton","703955","Glaze Auto Parts Limited","IN674910","61.38","Equipment - Purchase","190367171","23/08/2017","Fleet Services","Fleet Management","R4000"
"Wolverhampton City Council","http://opendatacommunities.org/id/metropolitan-district-council/wolverhampton","703955","Glaze Auto Parts Limited","IN674669","24.38","Equipment - Purchase","190367170","23/08/2017","Fleet Services","Fleet Management","R4000"
"Wolverhampton City Council","http://opendatacommunities.org/id/metropolitan-district-council/wolverhampton","703955","Glaze Auto Parts Limited","IN675838","7.45","Equipment - Purchase","190367176","23/08/2017","Fleet Services","Fleet Management","R4000"
"Wolverhampton City Council","http://opendatacommunities.org/id/metropolitan-district-council/wolverhampton","703955","Glaze Auto Parts Limited","IN674817","17.24","Equipment - Purchase","190365119","16/08/2017","Fleet Services","Fleet Management","R4000"
"Wolverhampton City Council","http://opendatacommunities.org/id/metropolitan-district-council/wolverhampton","703955","Glaze Auto Parts Limited","IN674971","45.50","Equipment - Purchase","190365122","16/08/2017","Fleet Services","Fleet Management","R4000"
"Wolverhampton City Council","http://opendatacommunities.org/id/metropolitan-district-council/wolverhampton","703955","Glaze Auto Parts Limited","IN675242","15.07","Equipment - Purchase","190365126","16/08/2017","Fleet Services","Fleet Management","R4000"
"Wolverhampton City Council","http://opendatacommunities.org/id/metropolitan-district-council/wolverhampton","703955","Glaze Auto Parts Limited","IN674031","56.32","Equipment - Purchase","190364647","16/08/2017","Fleet Services","Fleet Management","R4000"
"Wolverhampton City Council","http://opendatacommunities.org/id/metropolitan-district-council/wolverhampton","703955","Glaze Auto Parts Limited","IN674031","10.00","Equipment - Purchase","190364647","16/08/2017","Fleet Services","Fleet Management","R4000"
"Wolverhampton City Council","http://opendatacommunities.org/id/metropolitan-district-council/wolverhampton","703955","Glaze Auto Parts Limited","IN672353","15.00","Equipment - Purchase","190364646","16/08/2017","Fleet Services","Fleet Management","R4000"
"Wolverhampton City Council","http://opendatacommunities.org/id/metropolitan-district-council/wolverhampton","703955","Glaze Auto Parts Limited","IN672353","77.04","Equipment - Purchase","190364646","16/08/2017","Fleet Services","Fleet Management","R4000"
"Wolverhampton City Council","http://opendatacommunities.org/id/metropolitan-district-council/wolverhampton","703955","Glaze Auto Parts Limited","IN672167","9.98","Equipment - Purchase","190364644","16/08/2017","Fleet Services","Fleet Management","R4000"
"Wolverhampton City Council","http://opendatacommunities.org/id/metropolitan-district-council/wolverhampton","703986","Gompels Healthcare Limited","1233011","28.28","Materials","130180399","02/08/2017","Older People Provider Services","Bradley Lodge Resource Centre","R4007"
"Wolverhampton City Council","http://opendatacommunities.org/id/metropolitan-district-council/wolverhampton","704024","Gravograph Limited","AR 10074179","154.00","R&M - Departmental planned (internal)","130182694","23/08/2017","Bereavement Services","Cemeteries","R2000"
"Wolverhampton City Council","http://opendatacommunities.org/id/metropolitan-district-council/wolverhampton","704039","Greenacres Leonard Cheshire Disab�Ty","P151534 17091720170825","4,179.36","TPP - Nursing Care - Long Term","190368447","30/08/2017","Physical Disabilities Care Purchasing","PD Care Purchasing (Spot Placements)","R5410"
"Wolverhampton City Council","http://opendatacommunities.org/id/metropolitan-district-council/wolverhampton","704039","Greenacres Leonard Cheshire Disab�Ty","P148967 20081720170731","4,179.36","TPP - Nursing Care - Long Term","190362241","02/08/2017","Physical Disabilities Care Purchasing","PD Care Purchasing (Spot Placements)","R5410"
"Wolverhampton City Council","http://opendatacommunities.org/id/metropolitan-district-council/wolverhampton","704039","Greenacres Leonard Cheshire Disab�Ty","RIN\/TP/00450873","6,500.00","Training Expenses","130183840","30/08/2017","Democratic Services","Management Trainee Programme","R1650"
"Wolverhampton City Council","http://opendatacommunities.org/id/metropolitan-district-council/wolverhampton","704044","Greenhous Commercials Limited","13015786","53.73","Equipment - Purchase","190364607","16/08/2017","Fleet Services","Fleet Management","R4000"
"Wolverhampton City Council","http://opendatacommunities.org/id/metropolitan-district-council/wolverhampton","704044","Greenhous Commercials Limited","13690029","28.88","Services - Professional Fees","190368286","30/08/2017","Fleet Services","Fleet Management","R4400"
"Wolverhampton City Council","http://opendatacommunities.org/id/metropolitan-district-council/wolverhampton","704044","Greenhous Commercials Limited","13690029","83.17","Services - Professional Fees","190368286","30/08/2017","Fleet Services","Fleet Management","R4400"
"Wolverhampton City Council","http://opendatacommunities.org/id/metropolitan-district-council/wolverhampton","704044","Greenhous Commercials Limited","13690029","50.00","Services - Professional Fees","190368286","30/08/2017","Fleet Services","Fleet Management","R4400"
"Wolverhampton City Council","http://opendatacommunities.org/id/metropolitan-district-council/wolverhampton","704044","Greenhous Commercials Limited","13690193","15.00","Services - Professional Fees","190368290","30/08/2017","Fleet Services","Fleet Management","R4400"
"Wolverhampton City Council","http://opendatacommunities.org/id/metropolitan-district-council/wolverhampton","704044","Greenhous Commercials Limited","13690193","60.00","Services - Professional Fees","190368290","30/08/2017","Fleet Services","Fleet Management","R4400"
"Wolverhampton City Council","http://opendatacommunities.org/id/metropolitan-district-council/wolverhampton","704044","Greenhous Commercials Limited","13690029","1.90","Services - Professional Fees","190368286","30/08/2017","Fleet Services","Fleet Management","R4400"
"Wolverhampton City Council","http://opendatacommunities.org/id/metropolitan-district-council/wolverhampton","704044","Greenhous Commercials Limited","13690029","144.38","Services - Professional Fees","190368286","30/08/2017","Fleet Services","Fleet Management","R4400"
"Wolverhampton City Council","http://opendatacommunities.org/id/metropolitan-district-council/wolverhampton","704044","Greenhous Commercials Limited","13011932","82.50","Equipment - Purchase","190362971","04/08/2017","Fleet Services","Fleet Management","R4000"
"Wolverhampton City Council","http://opendatacommunities.org/id/metropolitan-district-council/wolverhampton","704044","Greenhous Commercials Limited","13011932","193.00","Equipment - Purchase","190362971","04/08/2017","Fleet Services","Fleet Management","R4000"
"Wolverhampton City Council","http://opendatacommunities.org/id/metropolitan-district-council/wolverhampton","704044","Greenhous Commercials Limited","13687925","45.00","Services - Professional Fees","190363743","09/08/2017","Fleet Services","Fleet Management","R4400"
"Wolverhampton City Council","http://opendatacommunities.org/id/metropolitan-district-council/wolverhampton","704044","Greenhous Commercials Limited","13687925","15.00","Services - Professional Fees","190363743","09/08/2017","Fleet Services","Fleet Management","R4400"
"Wolverhampton City Council","http://opendatacommunities.org/id/metropolitan-district-council/wolverhampton","704044","Greenhous Commercials Limited","13687924","50.00","Services - Professional Fees","190363742","09/08/2017","Fleet Services","Fleet Management","R4400"
"Wolverhampton City Council","http://opendatacommunities.org/id/metropolitan-district-council/wolverhampton","704044","Greenhous Commercials Limited","13019486","5.14","Equipment - Purchase","190367137","23/08/2017","Fleet Services","Fleet Management","R4000"
"Wolverhampton City Council","http://opendatacommunities.org/id/metropolitan-district-council/wolverhampton","704044","Greenhous Commercials Limited","13689409","113.00","MOT & HGV Tests","190367140","23/08/2017","Fleet Services","Fleet Management","R3005"
"Wolverhampton City Council","http://opendatacommunities.org/id/metropolitan-district-council/wolverhampton","704044","Greenhous Commercials Limited","13689409","35.00","MOT & HGV Tests","190367140","23/08/2017","Fleet Services","Fleet Management","R3005"
"Wolverhampton City Council","http://opendatacommunities.org/id/metropolitan-district-council/wolverhampton","704044","Greenhous Commercials Limited","13689931","128.00","MOT & HGV Tests","190367145","23/08/2017","Fleet Services","Fleet Management","R3005"
"Wolverhampton City Council","http://opendatacommunities.org/id/metropolitan-district-council/wolverhampton","704044","Greenhous Commercials Limited","13689931","35.00","MOT & HGV Tests","190367145","23/08/2017","Fleet Services","Fleet Management","R3005"
"Wolverhampton City Council","http://opendatacommunities.org/id/metropolitan-district-council/wolverhampton","704044","Greenhous Commercials Limited","13687926","45.00","Services - Professional Fees","190365861","18/08/2017","Fleet Services","Fleet Management","R4400"
"Wolverhampton City Council","http://opendatacommunities.org/id/metropolitan-district-council/wolverhampton","704044","Greenhous Commercials Limited","13687926","158.81","Services - Professional Fees","190365861","18/08/2017","Fleet Services","Fleet Management","R4400"
"Wolverhampton City Council","http://opendatacommunities.org/id/metropolitan-district-council/wolverhampton","704044","Greenhous Commercials Limited","13019123","8.44","Equipment - Purchase","190367136","23/08/2017","Fleet Services","Fleet Management","R4000"
"Wolverhampton City Council","http://opendatacommunities.org/id/metropolitan-district-council/wolverhampton","704044","Greenhous Commercials Limited","13689434","35.00","MOT & HGV Tests","190367141","23/08/2017","Fleet Services","Fleet Management","R3005"
"Wolverhampton City Council","http://opendatacommunities.org/id/metropolitan-district-council/wolverhampton","704044","Greenhous Commercials Limited","13689434","113.00","MOT & HGV Tests","190367141","23/08/2017","Fleet Services","Fleet Management","R3005"
"Wolverhampton City Council","http://opendatacommunities.org/id/metropolitan-district-council/wolverhampton","704044","Greenhous Commercials Limited","13689797","35.00","MOT & HGV Tests","190367144","23/08/2017","Fleet Services","Fleet Management","R3005"
"Wolverhampton City Council","http://opendatacommunities.org/id/metropolitan-district-council/wolverhampton","704044","Greenhous Commercials Limited","13689797","91.00","MOT & HGV Tests","190367144","23/08/2017","Fleet Services","Fleet Management","R3005"
"Wolverhampton City Council","http://opendatacommunities.org/id/metropolitan-district-council/wolverhampton","704044","Greenhous Commercials Limited","13687865","462.00","Services - Professional Fees","190365860","18/08/2017","Fleet Services","Fleet Management","R4400"
"Wolverhampton City Council","http://opendatacommunities.org/id/metropolitan-district-council/wolverhampton","704044","Greenhous Commercials Limited","13687865","476.91","Services - Professional Fees","190365860","18/08/2017","Fleet Services","Fleet Management","R4400"
"Wolverhampton City Council","http://opendatacommunities.org/id/metropolitan-district-council/wolverhampton","704044","Greenhous Commercials Limited","13687922","65.00","Services - Professional Fees","190363741","09/08/2017","Fleet Services","Fleet Management","R4400"
"Wolverhampton City Council","http://opendatacommunities.org/id/metropolitan-district-council/wolverhampton","704044","Greenhous Commercials Limited","13687922","15.00","Services - Professional Fees","190363741","09/08/2017","Fleet Services","Fleet Management","R4400"
"Wolverhampton City Council","http://opendatacommunities.org/id/metropolitan-district-council/wolverhampton","704044","Greenhous Commercials Limited","13688722","43.31","Services - Professional Fees","190363747","09/08/2017","Fleet Services","Fleet Management","R4400"
"Wolverhampton City Council","http://opendatacommunities.org/id/metropolitan-district-council/wolverhampton","704044","Greenhous Commercials Limited","13688722","76.00","Services - Professional Fees","190363747","09/08/2017","Fleet Services","Fleet Management","R4400"
"Wolverhampton City Council","http://opendatacommunities.org/id/metropolitan-district-council/wolverhampton","704044","Greenhous Commercials Limited","13688722","50.40","Services - Professional Fees","190363747","09/08/2017","Fleet Services","Fleet Management","R4400"
"Wolverhampton City Council","http://opendatacommunities.org/id/metropolitan-district-council/wolverhampton","704044","Greenhous Commercials Limited","13688722","50.00","Services - Professional Fees","190363747","09/08/2017","Fleet Services","Fleet Management","R4400"
"Wolverhampton City Council","http://opendatacommunities.org/id/metropolitan-district-council/wolverhampton","704044","Greenhous Commercials Limited","13688722","144.38","Services - Professional Fees","190363747","09/08/2017","Fleet Services","Fleet Management","R4400"
"Wolverhampton City Council","http://opendatacommunities.org/id/metropolitan-district-council/wolverhampton","704044","Greenhous Commercials Limited","13689139","45.00","Services - Professional Fees","190363750","09/08/2017","Fleet Services","Fleet Management","R4400"
"Wolverhampton City Council","http://opendatacommunities.org/id/metropolitan-district-council/wolverhampton","704044","Greenhous Commercials Limited","13689139","15.00","Services - Professional Fees","190363750","09/08/2017","Fleet Services","Fleet Management","R4400"
"Wolverhampton City Council","http://opendatacommunities.org/id/metropolitan-district-council/wolverhampton","704044","Greenhous Commercials Limited","13017741","170.32","Equipment - Purchase","190365096","16/08/2017","Fleet Services","Fleet Management","R4000"
"Wolverhampton City Council","http://opendatacommunities.org/id/metropolitan-district-council/wolverhampton","704044","Greenhous Commercials Limited","13015699","8.21","Equipment - Purchase","190364606","16/08/2017","Fleet Services","Fleet Management","R4000"
"Wolverhampton City Council","http://opendatacommunities.org/id/metropolitan-district-council/wolverhampton","704044","Greenhous Commercials Limited","13690073","50.00","Services - Professional Fees","190368287","30/08/2017","Fleet Services","Fleet Management","R4400"
"Wolverhampton City Council","http://opendatacommunities.org/id/metropolitan-district-council/wolverhampton","704044","Greenhous Commercials Limited","13019584","59.46","Equipment - Purchase","190368282","30/08/2017","Fleet Services","Fleet Management","R4000"
"Wolverhampton City Council","http://opendatacommunities.org/id/metropolitan-district-council/wolverhampton","704044","Greenhous Commercials Limited","13689798","9.27","Services - Professional Fees","190368840","30/08/2017","Fleet Services","Fleet Management","R4400"
"Wolverhampton City Council","http://opendatacommunities.org/id/metropolitan-district-council/wolverhampton","704044","Greenhous Commercials Limited","13689798","75.08","Services - Professional Fees","190368840","30/08/2017","Fleet Services","Fleet Management","R4400"
"Wolverhampton City Council","http://opendatacommunities.org/id/metropolitan-district-council/wolverhampton","704044","Greenhous Commercials Limited","13689798","23.10","Services - Professional Fees","190368840","30/08/2017","Fleet Services","Fleet Management","R4400"
"Wolverhampton City Council","http://opendatacommunities.org/id/metropolitan-district-council/wolverhampton","704044","Greenhous Commercials Limited","13689798","1.32","Services - Professional Fees","190368840","30/08/2017","Fleet Services","Fleet Management","R4400"
"Wolverhampton City Council","http://opendatacommunities.org/id/metropolitan-district-council/wolverhampton","704044","Greenhous Commercials Limited","13689798","11.55","Services - Professional Fees","190368840","30/08/2017","Fleet Services","Fleet Management","R4400"
"Wolverhampton City Council","http://opendatacommunities.org/id/metropolitan-district-council/wolverhampton","704044","Greenhous Commercials Limited","13689798","1.92","Services - Professional Fees","190368840","30/08/2017","Fleet Services","Fleet Management","R4400"
"Wolverhampton City Council","http://opendatacommunities.org/id/metropolitan-district-council/wolverhampton","704044","Greenhous Commercials Limited","13689798","64.59","Services - Professional Fees","190368840","30/08/2017","Fleet Services","Fleet Management","R4400"
"Wolverhampton City Council","http://opendatacommunities.org/id/metropolitan-district-council/wolverhampton","704044","Greenhous Commercials Limited","13689798","28.88","Services - Professional Fees","190368840","30/08/2017","Fleet Services","Fleet Management","R4400"
"Wolverhampton City Council","http://opendatacommunities.org/id/metropolitan-district-council/wolverhampton","704044","Greenhous Commercials Limited","13689798","14.44","Services - Professional Fees","190368840","30/08/2017","Fleet Services","Fleet Management","R4400"
"Wolverhampton City Council","http://opendatacommunities.org/id/metropolitan-district-council/wolverhampton","704044","Greenhous Commercials Limited","13689798","134.30","Services - Professional Fees","190368840","30/08/2017","Fleet Services","Fleet Management","R4400"
"Wolverhampton City Council","http://opendatacommunities.org/id/metropolitan-district-council/wolverhampton","704044","Greenhous Commercials Limited","13689798","28.88","Services - Professional Fees","190368840","30/08/2017","Fleet Services","Fleet Management","R4400"
"Wolverhampton City Council","http://opendatacommunities.org/id/metropolitan-district-council/wolverhampton","704044","Greenhous Commercials Limited","13689798","28.88","Services - Professional Fees","190368840","30/08/2017","Fleet Services","Fleet Management","R4400"
"Wolverhampton City Council","http://opendatacommunities.org/id/metropolitan-district-council/wolverhampton","704044","Greenhous Commercials Limited","13689798","11.55","Services - Professional Fees","190368840","30/08/2017","Fleet Services","Fleet Management","R4400"
"Wolverhampton City Council","http://opendatacommunities.org/id/metropolitan-district-council/wolverhampton","704044","Greenhous Commercials Limited","13689798","65.00","Services - Professional Fees","190368840","30/08/2017","Fleet Services","Fleet Management","R4400"
"Wolverhampton City Council","http://opendatacommunities.org/id/metropolitan-district-council/wolverhampton","704044","Greenhous Commercials Limited","13689798","15.00","Services - Professional Fees","190368840","30/08/2017","Fleet Services","Fleet Management","R4400"
"Wolverhampton City Council","http://opendatacommunities.org/id/metropolitan-district-council/wolverhampton","704044","Greenhous Commercials Limited","13689798","101.06","Services - Professional Fees","190368840","30/08/2017","Fleet Services","Fleet Management","R4400"
"Wolverhampton City Council","http://opendatacommunities.org/id/metropolitan-district-council/wolverhampton","704044","Greenhous Commercials Limited","13689798","17.47","Services - Professional Fees","190368840","30/08/2017","Fleet Services","Fleet Management","R4400"
"Wolverhampton City Council","http://opendatacommunities.org/id/metropolitan-district-council/wolverhampton","704044","Greenhous Commercials Limited","13689798","17.33","Services - Professional Fees","190368840","30/08/2017","Fleet Services","Fleet Management","R4400"
"Wolverhampton City Council","http://opendatacommunities.org/id/metropolitan-district-council/wolverhampton","704044","Greenhous Commercials Limited","13689798","11.55","Services - Professional Fees","190368840","30/08/2017","Fleet Services","Fleet Management","R4400"
"Wolverhampton City Council","http://opendatacommunities.org/id/metropolitan-district-council/wolverhampton","704044","Greenhous Commercials Limited","13012019","82.50","Equipment - Purchase","190362972","04/08/2017","Fleet Services","Fleet Management","R4000"
"Wolverhampton City Council","http://opendatacommunities.org/id/metropolitan-district-council/wolverhampton","704044","Greenhous Commercials Limited","13015688","107.46","Equipment - Purchase","190364605","16/08/2017","Fleet Services","Fleet Management","R4000"
"Wolverhampton City Council","http://opendatacommunities.org/id/metropolitan-district-council/wolverhampton","704044","Greenhous Commercials Limited","13688268","259.88","Services - Professional Fees","190368284","30/08/2017","Fleet Services","Fleet Management","R4400"
"Wolverhampton City Council","http://opendatacommunities.org/id/metropolitan-district-council/wolverhampton","704044","Greenhous Commercials Limited","13688268","1.71","Services - Professional Fees","190368284","30/08/2017","Fleet Services","Fleet Management","R4400"
"Wolverhampton City Council","http://opendatacommunities.org/id/metropolitan-district-council/wolverhampton","704044","Greenhous Commercials Limited","13688268","244.49","Services - Professional Fees","190368284","30/08/2017","Fleet Services","Fleet Management","R4400"
"Wolverhampton City Council","http://opendatacommunities.org/id/metropolitan-district-council/wolverhampton","704044","Greenhous Commercials Limited","13688268","17.09","Services - Professional Fees","190368284","30/08/2017","Fleet Services","Fleet Management","R4400"
"Wolverhampton City Council","http://opendatacommunities.org/id/metropolitan-district-council/wolverhampton","704044","Greenhous Commercials Limited","13688268","1,542.85","Services - Professional Fees","190368284","30/08/2017","Fleet Services","Fleet Management","R4400"
"Wolverhampton City Council","http://opendatacommunities.org/id/metropolitan-district-council/wolverhampton","704044","Greenhous Commercials Limited","13690099","65.00","Services - Professional Fees","190368288","30/08/2017","Fleet Services","Fleet Management","R4400"
"Wolverhampton City Council","http://opendatacommunities.org/id/metropolitan-district-council/wolverhampton","704044","Greenhous Commercials Limited","13690099","15.00","Services - Professional Fees","190368288","30/08/2017","Fleet Services","Fleet Management","R4400"
"Wolverhampton City Council","http://opendatacommunities.org/id/metropolitan-district-council/wolverhampton","704044","Greenhous Commercials Limited","13689814","144.38","Services - Professional Fees","190368841","30/08/2017","Fleet Services","Fleet Management","R4400"
"Wolverhampton City Council","http://opendatacommunities.org/id/metropolitan-district-council/wolverhampton","704044","Greenhous Commercials Limited","13689814","82.29","Services - Professional Fees","190368841","30/08/2017","Fleet Services","Fleet Management","R4400"
"Wolverhampton City Council","http://opendatacommunities.org/id/metropolitan-district-council/wolverhampton","704044","Greenhous Commercials Limited","13689814","81.30","Services - Professional Fees","190368841","30/08/2017","Fleet Services","Fleet Management","R4400"
"Wolverhampton City Council","http://opendatacommunities.org/id/metropolitan-district-council/wolverhampton","704044","Greenhous Commercials Limited","13689814","1.56","Services - Professional Fees","190368841","30/08/2017","Fleet Services","Fleet Management","R4400"
"Wolverhampton City Council","http://opendatacommunities.org/id/metropolitan-district-council/wolverhampton","704044","Greenhous Commercials Limited","13689814","144.38","Services - Professional Fees","190368841","30/08/2017","Fleet Services","Fleet Management","R4400"
"Wolverhampton City Council","http://opendatacommunities.org/id/metropolitan-district-council/wolverhampton","704044","Greenhous Commercials Limited","13689814","50.00","Services - Professional Fees","190368841","30/08/2017","Fleet Services","Fleet Management","R4400"
"Wolverhampton City Council","http://opendatacommunities.org/id/metropolitan-district-council/wolverhampton","704044","Greenhous Commercials Limited","13017158","31.01","Equipment - Purchase","190367135","23/08/2017","Fleet Services","Fleet Management","R4000"
"Wolverhampton City Council","http://opendatacommunities.org/id/metropolitan-district-council/wolverhampton","704044","Greenhous Commercials Limited","13689408","35.00","MOT & HGV Tests","190367139","23/08/2017","Fleet Services","Fleet Management","R3005"
"Wolverhampton City Council","http://opendatacommunities.org/id/metropolitan-district-council/wolverhampton","704044","Greenhous Commercials Limited","13689408","113.00","MOT & HGV Tests","190367139","23/08/2017","Fleet Services","Fleet Management","R3005"
"Wolverhampton City Council","http://opendatacommunities.org/id/metropolitan-district-council/wolverhampton","704044","Greenhous Commercials Limited","13689771","35.00","MOT & HGV Tests","190367143","23/08/2017","Fleet Services","Fleet Management","R3005"
"Wolverhampton City Council","http://opendatacommunities.org/id/metropolitan-district-council/wolverhampton","704044","Greenhous Commercials Limited","13689771","128.00","MOT & HGV Tests","190367143","23/08/2017","Fleet Services","Fleet Management","R3005"
"Wolverhampton City Council","http://opendatacommunities.org/id/metropolitan-district-council/wolverhampton","704044","Greenhous Commercials Limited","13017575","13.44","Equipment - Purchase","190365856","18/08/2017","Fleet Services","Fleet Management","R4000"
"Wolverhampton City Council","http://opendatacommunities.org/id/metropolitan-district-council/wolverhampton","704044","Greenhous Commercials Limited","13017575","31.62","Equipment - Purchase","190365856","18/08/2017","Fleet Services","Fleet Management","R4000"
"Wolverhampton City Council","http://opendatacommunities.org/id/metropolitan-district-council/wolverhampton","704044","Greenhous Commercials Limited","13688982","15.00","Services - Professional Fees","190363749","09/08/2017","Fleet Services","Fleet Management","R4400"
"Wolverhampton City Council","http://opendatacommunities.org/id/metropolitan-district-council/wolverhampton","704044","Greenhous Commercials Limited","13688982","65.00","Services - Professional Fees","190363749","09/08/2017","Fleet Services","Fleet Management","R4400"
"Wolverhampton City Council","http://opendatacommunities.org/id/metropolitan-district-council/wolverhampton","704044","Greenhous Commercials Limited","13688019","15.00","Services - Professional Fees","190363744","09/08/2017","Fleet Services","Fleet Management","R4400"
"Wolverhampton City Council","http://opendatacommunities.org/id/metropolitan-district-council/wolverhampton","704044","Greenhous Commercials Limited","13688019","54.00","Services - Professional Fees","190363744","09/08/2017","Fleet Services","Fleet Management","R4400"
"Wolverhampton City Council","http://opendatacommunities.org/id/metropolitan-district-council/wolverhampton","704044","Greenhous Commercials Limited","13688019","15.28","Services - Professional Fees","190363744","09/08/2017","Fleet Services","Fleet Management","R4400"
"Wolverhampton City Council","http://opendatacommunities.org/id/metropolitan-district-council/wolverhampton","704044","Greenhous Commercials Limited","13688019","45.00","Services - Professional Fees","190363744","09/08/2017","Fleet Services","Fleet Management","R4400"
"Wolverhampton City Council","http://opendatacommunities.org/id/metropolitan-district-council/wolverhampton","704044","Greenhous Commercials Limited","13018215","11.97","Equipment - Purchase","190365098","16/08/2017","Fleet Services","Fleet Management","R4000"
"Wolverhampton City Council","http://opendatacommunities.org/id/metropolitan-district-council/wolverhampton","704044","Greenhous Commercials Limited","13017941","47.50","Equipment - Purchase","190365097","16/08/2017","Fleet Services","Fleet Management","R4000"
"Wolverhampton City Council","http://opendatacommunities.org/id/metropolitan-district-council/wolverhampton","704044","Greenhous Commercials Limited","13017941","47.50","Equipment - Purchase","190365097","16/08/2017","Fleet Services","Fleet Management","R4000"
"Wolverhampton City Council","http://opendatacommunities.org/id/metropolitan-district-council/wolverhampton","704044","Greenhous Commercials Limited","13690145","57.75","Services - Professional Fees","190368289","30/08/2017","Fleet Services","Fleet Management","R4400"
"Wolverhampton City Council","http://opendatacommunities.org/id/metropolitan-district-council/wolverhampton","704044","Greenhous Commercials Limited","13690145","86.63","Services - Professional Fees","190368289","30/08/2017","Fleet Services","Fleet Management","R4400"
"Wolverhampton City Council","http://opendatacommunities.org/id/metropolitan-district-council/wolverhampton","704044","Greenhous Commercials Limited","13689473","15.00","Services - Professional Fees","190368285","30/08/2017","Fleet Services","Fleet Management","R4400"
"Wolverhampton City Council","http://opendatacommunities.org/id/metropolitan-district-council/wolverhampton","704044","Greenhous Commercials Limited","13689473","45.00","Services - Professional Fees","190368285","30/08/2017","Fleet Services","Fleet Management","R4400"
"Wolverhampton City Council","http://opendatacommunities.org/id/metropolitan-district-council/wolverhampton","704044","Greenhous Commercials Limited","13689026","1,542.85","Services - Professional Fees","190368839","30/08/2017","Fleet Services","Fleet Management","R4400"
"Wolverhampton City Council","http://opendatacommunities.org/id/metropolitan-district-council/wolverhampton","704044","Greenhous Commercials Limited","13689026","17.09","Services - Professional Fees","190368839","30/08/2017","Fleet Services","Fleet Management","R4400"
"Wolverhampton City Council","http://opendatacommunities.org/id/metropolitan-district-council/wolverhampton","704044","Greenhous Commercials Limited","13689026","216.56","Services - Professional Fees","190368839","30/08/2017","Fleet Services","Fleet Management","R4400"
"Wolverhampton City Council","http://opendatacommunities.org/id/metropolitan-district-council/wolverhampton","704044","Greenhous Commercials Limited","13687931","231.00","Services - Professional Fees","190365862","18/08/2017","Fleet Services","Fleet Management","R4400"
"Wolverhampton City Council","http://opendatacommunities.org/id/metropolitan-district-council/wolverhampton","704044","Greenhous Commercials Limited","13687931","50.00","Services - Professional Fees","190365862","18/08/2017","Fleet Services","Fleet Management","R4400"
